Workbook

Sheet Operating Expenditure
A3: Operating Expenditure Years 1 -10
P4: Year 11 Uplift | Q4: 0.15
P5: Years 11 - 15 rate of increase | Q5: 0.045
B6: All numbers in blue are input by Utility Regulator | D6: 0 | P6: Years 16 - 20 rate of increase | Q6: 0.0275
B7: All numbers in black are calculated | D7: 0 | P7: Years 21 - 30 rate of increase | Q7: 0.01
B8: Applicants only permitted to input data into blank cells | P8: Years 31 - 40 rate of increase | Q8: 0
E11: Controlable Operating Expenditure £m | Q11: Total
A12: Operating Expenditure Item | E12: Price Control Period 1 | J12: Price Control Period2 | P12: Year | Q12: Opex
A13: Level 1 | B13: Level 2 | C13: Level 3 | E13: 1 | F13: 2 | G13: 3 | H13: 4 | I13: 5 | J13: 6 | K13: 7 | L13: 8 | M13: 9 | N13: 10 | P13: 1 | Q13: =$E$46 -> 0.09928
P14: 2 | Q14: =$F$46 -> 0.26735
A15: Mobilisation Costs | P15: 3 | Q15: =$G$46 -> 0.30648
P16: 4 | Q16: =$H$46 -> 0.34544
A17: Marketing, Advertising & PR | B17: Market Development & Advertising | P17: 5 | Q17: =$I$46 -> 0.38432
A18: for Non-Domestic | B18: Incentives | P18: 6 | Q18: =$J$46 -> 0.44425
A19: Connections | B19: Total Marketing, Advertising & PR | E19: =SUM(E17:E18) -> 0 | F19: 0 | G19: 0 | H19: 0 | I19: 0 | J19: 0 | K19: 0 | L19: 0 | M19: 0 | N19: 0 | P19: 7 | Q19: =$K$46 -> 0.47931
P20: 8 | Q20: =$L$46 -> 0.51437
A21: Emergencies and | B21: Emergencies | C21: Emergency Call Centre | P21: 9 | Q21: =$M$46 -> 0.54943
A22: Network Maintenance | C22: First Calls | P22: 10 | Q22: =$N$46 -> 0.58083
B23: Network Maintenance | C23: Repairs | P23: 11 | Q23: =((SUM(Q13:Q22)-E15)/10)*(1+Q4) -> 0.4566719
C24: Maintenance | P24: 12 | Q24: =Q23*(1+$Q$5) -> 0.4772221355
B25: Total Emergencies and Network Maintenance | E25: =SUM(E21:E24) -> 0 | F25: =SUM(F21:F24) -> 0 | G25: 0 | H25: 0 | I25: 0 | J25: 0 | K25: 0 | L25: 0 | M25: 0 | N25: 0 | P25: 13 | Q25: =Q24*(1+$Q$5) -> 0.4986971316
P26: 14 | Q26: 0.5211385025
A27: Manpower | P27: 15 | Q27: 0.5445897351
P28: 16 | Q28: =Q27*(1+$Q$6) -> 0.5595659528
A29: Office | B29: Buildings | P29: 17 | Q29: =Q28*(1+$Q$6) -> 0.5749540166
B30: Telephone, Postage and Stationary | P30: 18 | Q30: 0.590765252
B31: Total Office | E31: =SUM(E29:E30) -> 0 | F31: =SUM(F29:F30) -> 0 | G31: =SUM(G29:G30) -> 0 | H31: =SUM(H29:H30) -> 0 | I31: =SUM(I29:I30) -> 0 | J31: =SUM(J29:J30) -> 0 | K31: =SUM(K29:K30) -> 0 | L31: =SUM(L29:L30) -> 0 | M31: =SUM(M29:M30) -> 0 | N31: =SUM(N29:N30) -> 0 | P31: 19 | Q31: 0.6070112964
P32: 20 | Q32: 0.6237041071
A33: Insurance | B33: Business Insurance | P33: 21 | Q33: =Q32*(1+$Q$7) -> 0.6299411482
B34: Car Insurance | P34: 22 | Q34: =Q33*(1+$Q$7) -> 0.6362405596
B35: Building Insurance | P35: 23 | Q35: 0.6426029652
B36: Total Insurance | E36: =SUM(E33:E35) -> 0 | F36: =SUM(F33:F35) -> 0 | G36: 0 | H36: 0 | I36: 0 | J36: 0 | K36: 0 | L36: 0 | M36: 0 | N36: 0 | P36: 24 | Q36: 0.6490289949
P37: 25 | Q37: 0.6555192848
A38: Professional and Legal Fees | P38: 26 | Q38: 0.6620744777
A39: Information Technology | P39: 27 | Q39: 0.6686952225
A40: Miscellaneous | P40: 28 | Q40: 0.6753821747
A41: Rates | E41: =SUM('Capital Expenditure'!$C$115)*0.01 -> 0.07428 | F41: =SUM('Capital Expenditure'!$C$115:E115)*0.01 -> 0.24235 | G41: =SUM('Capital Expenditure'!$C$115:F115)*0.01 -> 0.28148 | H41: =SUM('Capital Expenditure'!$C$115:G115)*0.01 -> 0.32044 | I41: =SUM('Capital Expenditure'!$C$115:H115)*0.01 -> 0.35932 | J41: =SUM('Capital Expenditure'!$C$115:I115)*0.01 -> 0.39425 | K41: =SUM('Capital Expenditure'!$C$115:J115)*0.01 -> 0.42931 | L41: =SUM('Capital Expenditure'!$C$115:K115)*0.01 -> 0.46437 | M41: =SUM('Capital Expenditure'!$C$115:L115)*0.01 -> 0.49943 | N41: =SUM('Capital Expenditure'!$C$115:M115)*0.01 -> 0.53083 | P41: 29 | Q41: 0.6821359964
A42: Licence Fees | E42: 0.025 | F42: 0.025 | G42: 0.025 | H42: 0.025 | I42: 0.025 | J42: 0.05 | K42: 0.05 | L42: 0.05 | M42: 0.05 | N42: 0.05 | P42: 30 | Q42: 0.6889573564
A43: Total Other | E43: =SUM(E38:E42) -> 0.09928 | F43: 0.26735 | G43: 0.30648 | H43: 0.34544 | I43: 0.38432 | J43: 0.44425 | K43: 0.47931 | L43: 0.51437 | M43: 0.54943 | N43: 0.58083 | P43: 31 | Q43: =Q42*(1+$Q$8) -> 0.6889573564
P44: 32 | Q44: =Q43*(1+$Q$8) -> 0.6889573564
P45: 33 | Q45: =Q44*(1+$Q$8) -> 0.6889573564
A46: Total Operating Expenditure | E46: =E15+E19+E25+E27+E31+E36+E43 -> 0.09928 | F46: 0.26735 | G46: 0.30648 | H46: 0.34544 | I46: 0.38432 | J46: 0.44425 | K46: 0.47931 | L46: 0.51437 | M46: 0.54943 | N46: 0.58083 | P46: 34 | Q46: 0.6889573564
P47: 35 | Q47: 0.6889573564
P48: 36 | Q48: 0.6889573564
P49: 37 | Q49: 0.6889573564
P50: 38 | Q50: 0.6889573564
P51: 39 | Q51: 0.6889573564
P52: 40 | Q52: 0.6889573564

Sheet Capital Expenditure
A3: Capital Expendituree Years 1 - 40
B6: All numbers in blue are input by Utility Regulator | D6: 0
B7: All numbers in black are calculated | D7: 0
B8: Applicants only permitted to input data into blank cells
C11: Period 1 | H11: Period 2 | M11: Period 3 | R11: Period 4 | W11: Period 5 | AB11: Period 6 | AG11: Period 7 | AL11: Period 8
A12: Connection Numbers | C12: 1 | D12: 2 | E12: 3 | F12: 4 | G12: 5 | H12: 6 | I12: 7 | J12: 8 | K12: 9 | L12: 10 | M12: 11 | N12: 12 | O12: 13 | P12: 14 | Q12: 15 | R12: 16 | S12: 17 | T12: 18 | U12: 19 | V12: 20 | W12: 21 | X12: 22 | Y12: 23 | Z12: 24 | AA12: 25 | AB12: 26 | AC12: 27 | AD12: 28 | AE12: 29 | AF12: 30 | AG12: 31 | AH12: 32 | AI12: 33 | AJ12: 34 | AK12: 35 | AL12: 36 | AM12: 37 | AN12: 38 | AO12: 39 | AP12: 40 | AR12: Total
B13: Dungannon + Coalisland | D13: 256 | E13: 256 | F13: 160 | G13: 160 | H13: 160 | I13: 160 | J13: 160 | K13: 160 | L13: 160 | M13: 160 | N13: 160 | O13: 160 | P13: 160 | Q13: 160 | R13: 160 | S13: 160 | T13: 160 | U13: 160 | V13: 160 | W13: 160 | X13: 160 | Y13: 160 | Z13: 160 | AA13: 160 | AB13: 160 | AC13: 160 | AD13: 160 | AE13: 160 | AF13: 160 | AG13: 160 | AR13: =SUM(C13:AP13) -> 4992
A14: Existing | B14: Cookstown + Magherafelt | D14: 282 | E14: 282 | F14: 176 | G14: 176 | H14: 176 | I14: 176 | J14: 176 | K14: 176 | L14: 176 | M14: 176 | N14: 176 | O14: 176 | P14: 176 | Q14: 176 | R14: 176 | S14: 176 | T14: 176 | U14: 176 | V14: 176 | W14: 176 | X14: 176 | Y14: 176 | Z14: 176 | AA14: 176 | AB14: 176 | AC14: 176 | AD14: 176 | AE14: 176 | AF14: 176 | AG14: 176 | AR14: =SUM(C14:AP14) -> 5492
A15: Owner | B15: Omagh | D15: 295 | E15: 295 | F15: 184 | G15: 184 | H15: 184 | I15: 184 | J15: 184 | K15: 184 | L15: 184 | M15: 184 | N15: 184 | O15: 184 | P15: 184 | Q15: 184 | R15: 184 | S15: 184 | T15: 184 | U15: 184 | V15: 184 | W15: 184 | X15: 184 | Y15: 184 | Z15: 184 | AA15: 184 | AB15: 184 | AC15: 184 | AD15: 184 | AE15: 184 | AF15: 184 | AG15: 184 | AR15: =SUM(C15:AP15) -> 5742
A16: Occupied | B16: Enniskillen + Derylin | D16: 220 | E16: 220 | F16: 138 | G16: 138 | H16: 138 | I16: 138 | J16: 138 | K16: 138 | L16: 138 | M16: 138 | N16: 138 | O16: 138 | P16: 138 | Q16: 138 | R16: 138 | S16: 138 | T16: 138 | U16: 138 | V16: 138 | W16: 138 | X16: 138 | Y16: 138 | Z16: 138 | AA16: 138 | AB16: 138 | AC16: 138 | AD16: 138 | AE16: 138 | AF16: 138 | AG16: 138 | AR16: =SUM(C16:AP16) -> 4304
B17: Strabane | D17: 164 | E17: 164 | F17: 103 | G17: 103 | H17: 103 | I17: 103 | J17: 103 | K17: 103 | L17: 103 | M17: 103 | N17: 103 | O17: 103 | P17: 103 | Q17: 103 | R17: 103 | S17: 103 | T17: 103 | U17: 103 | V17: 103 | W17: 103 | X17: 103 | Y17: 103 | Z17: 103 | AA17: 103 | AB17: 103 | AC17: 103 | AD17: 103 | AE17: 103 | AF17: 103 | AG17: 103 | AR17: =SUM(C17:AP17) -> 3212
B18: Total | C18: =SUM(C13:C17) -> 0 | D18: =SUM(D13:D17) -> 1217 | E18: =SUM(E13:E17) -> 1217 | F18: 761 | G18: 761 | H18: 761 | I18: 761 | J18: 761 | K18: 761 | L18: 761 | M18: 761 | N18: 761 | O18: 761 | P18: 761 | Q18: 761 | R18: 761 | S18: 761 | T18: 761 | U18: 761 | V18: 761 | W18: 761 | X18: 761 | Y18: 761 | Z18: 761 | AA18: 761 | AB18: 761 | AC18: 761 | AD18: 761 | AE18: 761 | AF18: 761 | AG18: 761 | AH18: 0 | AI18: 0 | AJ18: 0 | AK18: 0 | AL18: 0 | AM18: 0 | AN18: 0 | AO18: 0 | AP18: 0 | AR18: 23742
B19: Dungannon + Coalisland | D19: 215 | E19: 54 | F19: 54 | G19: 54 | H19: 54 | I19: 21 | J19: 21 | K19: 21 | L19: 21 | M19: 21 | N19: 54 | O19: 54 | P19: 54 | Q19: 54 | R19: 54 | S19: 54 | T19: 54 | U19: 54 | V19: 54 | W19: 54 | AR19: =SUM(C19:AP19) -> 1076
A20: Existing | B20: Cookstown + Magherafelt | D20: 221 | E20: 55 | F20: 55 | G20: 55 | H20: 55 | I20: 22 | J20: 22 | K20: 22 | L20: 22 | M20: 22 | N20: 55 | O20: 55 | P20: 55 | Q20: 55 | R20: 55 | S20: 55 | T20: 55 | U20: 55 | V20: 55 | W20: 55 | AR20: =SUM(C20:AP20) -> 1101
A21: Housing | B21: Omagh | D21: 244 | E21: 61 | F21: 61 | G21: 61 | H21: 61 | I21: 24 | J21: 24 | K21: 24 | L21: 24 | M21: 24 | N21: 61 | O21: 61 | P21: 61 | Q21: 61 | R21: 61 | S21: 61 | T21: 61 | U21: 61 | V21: 61 | W21: 61 | AR21: =SUM(C21:AP21) -> 1218
A22: Executive | B22: Enniskillen + Derylin | D22: 174 | E22: 43 | F22: 43 | G22: 43 | H22: 43 | I22: 17 | J22: 17 | K22: 17 | L22: 17 | M22: 17 | N22: 43 | O22: 43 | P22: 43 | Q22: 43 | R22: 43 | S22: 43 | T22: 43 | U22: 43 | V22: 43 | W22: 43 | AR22: =SUM(C22:AP22) -> 861
B23: Strabane | D23: 209 | E23: 52 | F23: 52 | G23: 52 | H23: 52 | I23: 21 | J23: 21 | K23: 21 | L23: 21 | M23: 21 | N23: 52 | O23: 52 | P23: 52 | Q23: 52 | R23: 52 | S23: 52 | T23: 52 | U23: 52 | V23: 52 | W23: 52 | AR23: =SUM(C23:AP23) -> 1042
B24: Total | C24: =SUM(C19:C23) -> 0 | D24: 1063 | E24: 265 | F24: 265 | G24: 265 | H24: 265 | I24: 105 | J24: 105 | K24: 105 | L24: 105 | M24: 105 | N24: 265 | O24: 265 | P24: 265 | Q24: 265 | R24: 265 | S24: 265 | T24: 265 | U24: 265 | V24: 265 | W24: 265 | X24: 0 | Y24: 0 | Z24: 0 | AA24: 0 | AB24: 0 | AC24: 0 | AD24: 0 | AE24: 0 | AF24: 0 | AG24: 0 | AH24: 0 | AI24: 0 | AJ24: 0 | AK24: 0 | AL24: 0 | AM24: 0 | AN24: 0 | AO24: 0 | AP24: 0 | AR24: =SUM(AR19:AR23) -> 5298
B25: Dungannon + Coalisland | D25: 53 | E25: 71 | F25: 71 | G25: 71 | H25: 71 | I25: 89 | J25: 71 | K25: 71 | L25: 71 | M25: 71 | N25: 71 | O25: 71 | P25: 71 | Q25: 71 | R25: 71 | S25: 71 | T25: 71 | U25: 71 | V25: 71 | W25: 71 | X25: 71 | Y25: 71 | Z25: 71 | AA25: 71 | AB25: 71 | AC25: 71 | AD25: 71 | AE25: 71 | AF25: 71 | AG25: 71 | AH25: 71 | AI25: 71 | AJ25: 71 | AK25: 71 | AL25: 71 | AM25: 71 | AN25: 71 | AO25: 71 | AP25: 71 | AR25: =SUM(C25:AP25) -> 2769
A26: New | B26: Cookstown + Magherafelt | D26: 58 | E26: 58 | F26: 58 | G26: 70 | H26: 76 | I26: 58 | J26: 70 | K26: 70 | L26: 70 | M26: 70 | N26: 70 | O26: 70 | P26: 70 | Q26: 70 | R26: 70 | S26: 70 | T26: 70 | U26: 70 | V26: 70 | W26: 70 | X26: 70 | Y26: 70 | Z26: 70 | AA26: 70 | AB26: 70 | AC26: 70 | AD26: 70 | AE26: 70 | AF26: 70 | AG26: 70 | AH26: 70 | AI26: 70 | AJ26: 70 | AK26: 70 | AL26: 70 | AM26: 70 | AN26: 70 | AO26: 70 | AP26: 70 | AR26: =SUM(C26:AP26) -> 2688
A27: Houses | B27: Omagh | D27: 46 | E27: 46 | F27: 69 | G27: 46 | H27: 46 | I27: 46 | J27: 69 | K27: 69 | L27: 69 | M27: 69 | N27: 69 | O27: 69 | P27: 69 | Q27: 69 | R27: 69 | S27: 69 | T27: 69 | U27: 69 | V27: 69 | W27: 69 | X27: 69 | Y27: 69 | Z27: 69 | AA27: 69 | AB27: 69 | AC27: 69 | AD27: 69 | AE27: 69 | AF27: 69 | AG27: 69 | AH27: 69 | AI27: 69 | AJ27: 69 | AK27: 69 | AL27: 69 | AM27: 69 | AN27: 69 | AO27: 69 | AP27: 69 | AR27: =SUM(C27:AP27) -> 2576
B28: Enniskillen + Derylin | D28: 42 | E28: 28 | F28: 28 | G28: 42 | H28: 28 | I28: 28 | J28: 42 | K28: 42 | L28: 42 | M28: 42 | N28: 42 | O28: 42 | P28: 42 | Q28: 42 | R28: 42 | S28: 42 | T28: 42 | U28: 42 | V28: 42 | W28: 42 | X28: 42 | Y28: 42 | Z28: 42 | AA28: 42 | AB28: 42 | AC28: 42 | AD28: 42 | AE28: 42 | AF28: 42 | AG28: 42 | AH28: 42 | AI28: 42 | AJ28: 42 | AK28: 42 | AL28: 42 | AM28: 42 | AN28: 42 | AO28: 42 | AP28: 42 | AR28: =SUM(C28:AP28) -> 1582
B29: Strabane | D29: 37 | E29: 18 | F29: 37 | G29: 18 | H29: 18 | I29: 37 | J29: 18 | K29: 18 | L29: 18 | M29: 18 | N29: 18 | O29: 18 | P29: 18 | Q29: 18 | R29: 18 | S29: 18 | T29: 18 | U29: 18 | V29: 18 | W29: 18 | X29: 18 | Y29: 18 | Z29: 18 | AA29: 18 | AB29: 18 | AC29: 18 | AD29: 18 | AE29: 18 | AF29: 18 | AG29: 18 | AH29: 18 | AI29: 18 | AJ29: 18 | AK29: 18 | AL29: 18 | AM29: 18 | AN29: 18 | AO29: 18 | AP29: 18 | AR29: =SUM(C29:AP29) -> 759
B30: Total | C30: =SUM(C25:C29) -> 0 | D30: 236 | E30: 221 | F30: 263 | G30: 247 | H30: 239 | I30: 258 | J30: 270 | K30: 270 | L30: 270 | M30: 270 | N30: 270 | O30: 270 | P30: 270 | Q30: 270 | R30: 270 | S30: 270 | T30: 270 | U30: 270 | V30: 270 | W30: 270 | X30: 270 | Y30: 270 | Z30: 270 | AA30: 270 | AB30: 270 | AC30: 270 | AD30: 270 | AE30: 270 | AF30: 270 | AG30: 270 | AH30: 270 | AI30: 270 | AJ30: 270 | AK30: 270 | AL30: 270 | AM30: 270 | AN30: 270 | AO30: 270 | AP30: 270 | AR30: =SUM(AR25:AR29) -> 10374
B31: Dungannon + Coalisland | D31: 18 | E31: 7 | F31: 11 | G31: 11 | H31: 11 | I31: 11 | J31: 11 | K31: 11 | L31: 11 | AR31: =SUM(C31:AP31) -> 102
A32: Small I & C | B32: Cookstown + Magherafelt | D32: 28 | E32: 11 | F32: 17 | G32: 17 | H32: 17 | I32: 17 | J32: 17 | K32: 17 | L32: 17 | AR32: =SUM(C32:AP32) -> 158
B33: Omagh | D33: 14 | E33: 6 | F33: 8 | G33: 8 | H33: 8 | I33: 8 | J33: 8 | K33: 8 | L33: 8 | AR33: =SUM(C33:AP33) -> 76
B34: Enniskillen + Derylin | D34: 11 | E34: 4 | F34: 7 | G34: 7 | H34: 7 | I34: 7 | J34: 7 | K34: 7 | L34: 7 | AR34: =SUM(C34:AP34) -> 64
B35: Strabane | D35: 8 | E35: 3 | F35: 5 | G35: 5 | H35: 5 | I35: 5 | J35: 5 | K35: 5 | L35: 5 | AR35: =SUM(C35:AP35) -> 46
B36: Total | C36: =SUM(C31:C35) -> 0 | D36: 79 | E36: 31 | F36: 48 | G36: 48 | H36: 48 | I36: 48 | J36: 48 | K36: 48 | L36: 48 | M36: 0 | N36: 0 | O36: 0 | P36: 0 | Q36: 0 | R36: 0 | S36: 0 | T36: 0 | U36: 0 | V36: 0 | W36: 0 | X36: 0 | Y36: 0 | Z36: 0 | AA36: 0 | AB36: 0 | AC36: 0 | AD36: 0 | AE36: 0 | AF36: 0 | AG36: 0 | AH36: 0 | AI36: 0 | AJ36: 0 | AK36: 0 | AL36: 0 | AM36: 0 | AN36: 0 | AO36: 0 | AP36: 0 | AR36: =SUM(AR31:AR35) -> 446
B37: Dungannon + Coalisland | D37: 9 | E37: 4 | F37: 5 | G37: 5 | H37: 5 | I37: 5 | J37: 5 | K37: 5 | L37: 5 | AR37: =SUM(C37:AP37) -> 48
A38: Medium I & C | B38: Cookstown + Magherafelt | D38: 21 | E38: 8 | F38: 12 | G38: 12 | H38: 12 | I38: 12 | J38: 12 | K38: 12 | L38: 12 | AR38: =SUM(C38:AP38) -> 113
B39: Omagh | D39: 12 | E39: 5 | F39: 7 | G39: 7 | H39: 7 | I39: 7 | J39: 7 | K39: 7 | L39: 7 | AR39: =SUM(C39:AP39) -> 66
B40: Enniskillen + Derylin | D40: 8 | E40: 3 | F40: 5 | G40: 5 | H40: 5 | I40: 5 | J40: 5 | K40: 5 | L40: 5 | AR40: =SUM(C40:AP40) -> 46
B41: Strabane | D41: 6 | E41: 3 | F41: 4 | G41: 4 | H41: 4 | I41: 4 | J41: 4 | K41: 4 | L41: 4 | AR41: =SUM(C41:AP41) -> 37
B42: Total | C42: =SUM(C37:C41) -> 0 | D42: 56 | E42: 23 | F42: 33 | G42: 33 | H42: 33 | I42: 33 | J42: 33 | K42: 33 | L42: 33 | M42: 0 | N42: 0 | O42: 0 | P42: 0 | Q42: 0 | R42: 0 | S42: 0 | T42: 0 | U42: 0 | V42: 0 | W42: 0 | X42: 0 | Y42: 0 | Z42: 0 | AA42: 0 | AB42: 0 | AC42: 0 | AD42: 0 | AE42: 0 | AF42: 0 | AG42: 0 | AH42: 0 | AI42: 0 | AJ42: 0 | AK42: 0 | AL42: 0 | AM42: 0 | AN42: 0 | AO42: 0 | AP42: 0 | AR42: =SUM(AR37:AR41) -> 310
B43: Dungannon + Coalisland | D43: 4 | E43: 4 | AR43: =SUM(C43:AP43) -> 8
A44: Large I & C | B44: Cookstown + Magherafelt | D44: 4 | E44: 4 | AR44: =SUM(C44:AP44) -> 8
B45: Omagh | D45: 5 | E45: 5 | AR45: =SUM(C45:AP45) -> 10
B46: Enniskillen + Derylin | D46: 3 | E46: 3 | AR46: =SUM(C46:AP46) -> 6
B47: Strabane | D47: 2 | E47: 2 | AR47: =SUM(C47:AP47) -> 4
B48: Total | C48: =SUM(C43:C47) -> 0 | D48: =SUM(D43:D47) -> 18 | E48: 18 | F48: 0 | G48: 0 | H48: 0 | I48: 0 | J48: 0 | K48: 0 | L48: 0 | M48: 0 | N48: 0 | O48: 0 | P48: 0 | Q48: 0 | R48: 0 | S48: 0 | T48: 0 | U48: 0 | V48: 0 | W48: 0 | X48: 0 | Y48: 0 | Z48: 0 | AA48: 0 | AB48: 0 | AC48: 0 | AD48: 0 | AE48: 0 | AF48: 0 | AG48: 0 | AH48: 0 | AI48: 0 | AJ48: 0 | AK48: 0 | AL48: 0 | AM48: 0 | AN48: 0 | AO48: 0 | AP48: 0 | AR48: =SUM(AR43:AR47) -> 36
B49: Dungannon + Coalisland | C49: 4 | D49: 3 | AR49: =SUM(C49:AP49) -> 7
A50: Contract I & C | B50: Cookstown + Magherafelt | C50: 4 | D50: 3 | AR50: =SUM(C50:AP50) -> 7
B51: Omagh | C51: 3 | D51: 3 | AR51: =SUM(C51:AP51) -> 6
B52: Enniskillen + Derylin | C52: 3 | D52: 3 | AR52: =SUM(C52:AP52) -> 6
B53: Strabane | C53: 1 | D53: 0 | AR53: =SUM(C53:AP53) -> 1
B54: Total | C54: =SUM(C49:C53) -> 15 | D54: =SUM(D49:D53) -> 12 | E54: 0 | F54: 0 | G54: 0 | H54: 0 | I54: 0 | J54: 0 | K54: 0 | L54: 0 | M54: 0 | N54: 0 | O54: 0 | P54: 0 | Q54: 0 | R54: 0 | S54: 0 | T54: 0 | U54: 0 | V54: 0 | W54: 0 | X54: 0 | Y54: 0 | Z54: 0 | AA54: 0 | AB54: 0 | AC54: 0 | AD54: 0 | AE54: 0 | AF54: 0 | AG54: 0 | AH54: 0 | AI54: 0 | AJ54: 0 | AK54: 0 | AL54: 0 | AM54: 0 | AN54: 0 | AO54: 0 | AP54: 0 | AR54: =SUM(AR49:AR53) -> 27
C57: Period 1 | H57: Period 2 | M57: Period 3 | R57: Period 4 | W57: Period 5 | AB57: Period 6 | AG57: Period 7 | AL57: Period 8
A58: Connection Costs | C58: 1 | D58: 2 | E58: 3 | F58: 4 | G58: 5 | H58: 6 | I58: 7 | J58: 8 | K58: 9 | L58: 10 | M58: 11 | N58: 12 | O58: 13 | P58: 14 | Q58: 15 | R58: 16 | S58: 17 | T58: 18 | U58: 19 | V58: 20 | W58: 21 | X58: 22 | Y58: 23 | Z58: 24 | AA58: 25 | AB58: 26 | AC58: 27 | AD58: 28 | AE58: 29 | AF58: 30 | AG58: 31 | AH58: 32 | AI58: 33 | AJ58: 34 | AK58: 35 | AL58: 36 | AM58: 37 | AN58: 38 | AO58: 39 | AP58: 40 | AR58: Total
B59: Dungannon + Coalisland | C59: =(C13+C19)*$A$69 -> 0 | D59: =(D13+D19)*$A$63 -> 1220832 | E59: =(E13+E19)*$A$63 -> 803520 | F59: 554688 | G59: 554688 | H59: 554688 | I59: 469152 | J59: 469152 | K59: 469152 | L59: 469152 | M59: 469152 | N59: 554688 | O59: 554688 | P59: 554688 | Q59: 554688 | R59: 554688 | S59: 554688 | T59: 554688 | U59: 554688 | V59: 554688 | W59: 554688 | X59: 414720 | Y59: 414720 | Z59: 414720 | AA59: 414720 | AB59: 414720 | AC59: 414720 | AD59: 414720 | AE59: 414720 | AF59: 414720 | AG59: 414720 | AH59: 0 | AI59: 0 | AJ59: 0 | AK59: 0 | AL59: 0 | AM59: 0 | AN59: 0 | AO59: 0 | AP59: 0 | AR59: =SUM(C59:AP59) -> 15728256
A60: Existing | B60: Cookstown + Magherafelt | C60: =(C14+C20)*$A$69 -> 0 | D60: =(D14+D20)*$A$63 -> 1303776 | E60: 873504 | F60: 598752 | G60: 598752 | H60: 598752 | I60: 513216 | J60: 513216 | K60: 513216 | L60: 513216 | M60: 513216 | N60: 598752 | O60: 598752 | P60: 598752 | Q60: 598752 | R60: 598752 | S60: 598752 | T60: 598752 | U60: 598752 | V60: 598752 | W60: 598752 | X60: 456192 | Y60: 456192 | Z60: 456192 | AA60: 456192 | AB60: 456192 | AC60: 456192 | AD60: 456192 | AE60: 456192 | AF60: 456192 | AG60: 456192 | AH60: 0 | AI60: 0 | AJ60: 0 | AK60: 0 | AL60: 0 | AM60: 0 | AN60: 0 | AO60: 0 | AP60: 0 | AR60: =SUM(C60:AP60) -> 17089056
A61: Houses | B61: Omagh | C61: =(C15+C21)*$A$69 -> 0 | D61: =(D15+D21)*$A$63 -> 1397088 | E61: 922752 | F61: 635040 | G61: 635040 | H61: 635040 | I61: 539136 | J61: 539136 | K61: 539136 | L61: 539136 | M61: 539136 | N61: 635040 | O61: 635040 | P61: 635040 | Q61: 635040 | R61: 635040 | S61: 635040 | T61: 635040 | U61: 635040 | V61: 635040 | W61: 635040 | X61: 476928 | Y61: 476928 | Z61: 476928 | AA61: 476928 | AB61: 476928 | AC61: 476928 | AD61: 476928 | AE61: 476928 | AF61: 476928 | AG61: 476928 | AH61: 0 | AI61: 0 | AJ61: 0 | AK61: 0 | AL61: 0 | AM61: 0 | AN61: 0 | AO61: 0 | AP61: 0 | AR61: =SUM(C61:AP61) -> 18040320
B62: Enniskillen + Derylin | C62: =(C16+C22)*$A$69 -> 0 | D62: =(D16+D22)*$A$63 -> 1021248 | E62: 681696 | F62: 469152 | G62: 469152 | H62: 469152 | I62: 401760 | J62: 401760 | K62: 401760 | L62: 401760 | M62: 401760 | N62: 469152 | O62: 469152 | P62: 469152 | Q62: 469152 | R62: 469152 | S62: 469152 | T62: 469152 | U62: 469152 | V62: 469152 | W62: 469152 | X62: 357696 | Y62: 357696 | Z62: 357696 | AA62: 357696 | AB62: 357696 | AC62: 357696 | AD62: 357696 | AE62: 357696 | AF62: 357696 | AG62: 357696 | AH62: 0 | AI62: 0 | AJ62: 0 | AK62: 0 | AL62: 0 | AM62: 0 | AN62: 0 | AO62: 0 | AP62: 0 | AR62: =SUM(C62:AP62) -> 13387680
A63: =ROUND(2476*1.0467,0) -> 2592 | B63: Strabane | C63: =(C17+C23)*$A$69 -> 0 | D63: =(D17+D23)*$A$63 -> 966816 | E63: 559872 | F63: 401760 | G63: 401760 | H63: 401760 | I63: 321408 | J63: 321408 | K63: 321408 | L63: 321408 | M63: 321408 | N63: 401760 | O63: 401760 | P63: 401760 | Q63: 401760 | R63: 401760 | S63: 401760 | T63: 401760 | U63: 401760 | V63: 401760 | W63: 401760 | X63: 266976 | Y63: 266976 | Z63: 266976 | AA63: 266976 | AB63: 266976 | AC63: 266976 | AD63: 266976 | AE63: 266976 | AF63: 266976 | AG63: 266976 | AH63: 0 | AI63: 0 | AJ63: 0 | AK63: 0 | AL63: 0 | AM63: 0 | AN63: 0 | AO63: 0 | AP63: 0 | AR63: =SUM(C63:AP63) -> 11026368
B64: Total | C64: =SUM(C59:C63) -> 0 | D64: 5909760 | E64: 3841344 | F64: 2659392 | G64: 2659392 | H64: 2659392 | I64: 2244672 | J64: 2244672 | K64: 2244672 | L64: 2244672 | M64: 2244672 | N64: 2659392 | O64: =SUM(O59:O63) -> 2659392 | P64: 2659392 | Q64: 2659392 | R64: 2659392 | S64: 2659392 | T64: 2659392 | U64: 2659392 | V64: 2659392 | W64: 2659392 | X64: 1972512 | Y64: 1972512 | Z64: 1972512 | AA64: 1972512 | AB64: 1972512 | AC64: 1972512 | AD64: 1972512 | AE64: 1972512 | AF64: 1972512 | AG64: 1972512 | AH64: 0 | AI64: 0 | AJ64: 0 | AK64: 0 | AL64: 0 | AM64: 0 | AN64: 0 | AO64: 0 | AP64: 0 | AR64: =SUM(AR59:AR63) -> 75271680
B65: Dungannon + Coalisland | C65: =C25*$A$69 -> 0 | D65: =D25*$A$69 -> 51304 | E65: 68728 | F65: 68728 | G65: 68728 | H65: 68728 | I65: 86152 | J65: 68728 | K65: 68728 | L65: 68728 | M65: 68728 | N65: 68728 | O65: =O25*$A$69 -> 68728 | P65: 68728 | Q65: 68728 | R65: 68728 | S65: 68728 | T65: 68728 | U65: 68728 | V65: 68728 | W65: 68728 | X65: 68728 | Y65: 68728 | Z65: 68728 | AA65: 68728 | AB65: 68728 | AC65: 68728 | AD65: 68728 | AE65: 68728 | AF65: 68728 | AG65: 68728 | AH65: 68728 | AI65: 68728 | AJ65: 68728 | AK65: 68728 | AL65: 68728 | AM65: 68728 | AN65: 68728 | AO65: 68728 | AP65: 68728 | AR65: =SUM(C65:AP65) -> 2680392
A66: New | B66: Cookstown + Magherafelt | C66: =C26*$A$69 -> 0 | D66: 56144 | E66: 56144 | F66: 56144 | G66: 67760 | H66: 73568 | I66: 56144 | J66: 67760 | K66: 67760 | L66: 67760 | M66: 67760 | N66: 67760 | O66: =O26*$A$69 -> 67760 | P66: 67760 | Q66: 67760 | R66: 67760 | S66: 67760 | T66: 67760 | U66: 67760 | V66: 67760 | W66: 67760 | X66: 67760 | Y66: 67760 | Z66: 67760 | AA66: 67760 | AB66: 67760 | AC66: 67760 | AD66: 67760 | AE66: 67760 | AF66: 67760 | AG66: 67760 | AH66: 67760 | AI66: 67760 | AJ66: 67760 | AK66: 67760 | AL66: 67760 | AM66: 67760 | AN66: 67760 | AO66: 67760 | AP66: 67760 | AR66: =SUM(C66:AP66) -> 2601984
A67: Houses | B67: Omagh | C67: =C27*$A$69 -> 0 | D67: 44528 | E67: 44528 | F67: 66792 | G67: 44528 | H67: 44528 | I67: 44528 | J67: 66792 | K67: 66792 | L67: 66792 | M67: 66792 | N67: 66792 | O67: =O27*$A$69 -> 66792 | P67: 66792 | Q67: 66792 | R67: 66792 | S67: 66792 | T67: 66792 | U67: 66792 | V67: 66792 | W67: 66792 | X67: 66792 | Y67: 66792 | Z67: 66792 | AA67: 66792 | AB67: 66792 | AC67: 66792 | AD67: 66792 | AE67: 66792 | AF67: 66792 | AG67: 66792 | AH67: 66792 | AI67: 66792 | AJ67: 66792 | AK67: 66792 | AL67: 66792 | AM67: 66792 | AN67: 66792 | AO67: 66792 | AP67: 66792 | AR67: =SUM(C67:AP67) -> 2493568
B68: Enniskillen + Derylin | C68: =C28*$A$69 -> 0 | D68: 40656 | E68: 27104 | F68: 27104 | G68: 40656 | H68: 27104 | I68: 27104 | J68: 40656 | K68: 40656 | L68: 40656 | M68: 40656 | N68: 40656 | O68: =O28*$A$69 -> 40656 | P68: 40656 | Q68: 40656 | R68: 40656 | S68: 40656 | T68: 40656 | U68: 40656 | V68: 40656 | W68: 40656 | X68: 40656 | Y68: 40656 | Z68: 40656 | AA68: 40656 | AB68: 40656 | AC68: 40656 | AD68: 40656 | AE68: 40656 | AF68: 40656 | AG68: 40656 | AH68: 40656 | AI68: 40656 | AJ68: 40656 | AK68: 40656 | AL68: 40656 | AM68: 40656 | AN68: 40656 | AO68: 40656 | AP68: 40656 | AR68: =SUM(C68:AP68) -> 1531376
A69: =ROUND(925*1.0467,0) -> 968 | B69: Strabane | C69: =C29*$A$69 -> 0 | D69: 35816 | E69: 17424 | F69: 35816 | G69: 17424 | H69: 17424 | I69: 35816 | J69: 17424 | K69: 17424 | L69: 17424 | M69: 17424 | N69: 17424 | O69: =O29*$A$69 -> 17424 | P69: 17424 | Q69: 17424 | R69: 17424 | S69: 17424 | T69: 17424 | U69: 17424 | V69: 17424 | W69: 17424 | X69: 17424 | Y69: 17424 | Z69: 17424 | AA69: 17424 | AB69: 17424 | AC69: 17424 | AD69: 17424 | AE69: 17424 | AF69: 17424 | AG69: 17424 | AH69: 17424 | AI69: 17424 | AJ69: 17424 | AK69: 17424 | AL69: 17424 | AM69: 17424 | AN69: 17424 | AO69: 17424 | AP69: 17424 | AR69: =SUM(C69:AP69) -> 734712
B70: Total | C70: =SUM(C65:C69) -> 0 | D70: 228448 | E70: 213928 | F70: 254584 | G70: 239096 | H70: 231352 | I70: 249744 | J70: 261360 | K70: 261360 | L70: 261360 | M70: 261360 | N70: 261360 | O70: =SUM(O65:O69) -> 261360 | P70: 261360 | Q70: 261360 | R70: 261360 | S70: 261360 | T70: 261360 | U70: 261360 | V70: 261360 | W70: 261360 | X70: 261360 | Y70: 261360 | Z70: 261360 | AA70: 261360 | AB70: 261360 | AC70: 261360 | AD70: 261360 | AE70: 261360 | AF70: 261360 | AG70: 261360 | AH70: 261360 | AI70: 261360 | AJ70: 261360 | AK70: 261360 | AL70: 261360 | AM70: 261360 | AN70: 261360 | AO70: 261360 | AP70: 261360 | AR70: =SUM(AR65:AR69) -> 10042032
B71: Dungannon + Coalisland | C71: =C31*$A$75 -> 0 | D71: =D31*$A$75 -> 69786 | E71: 27139 | F71: 42647 | G71: 42647 | H71: 42647 | I71: 42647 | J71: 42647 | K71: 42647 | L71: 42647 | M71: 0 | N71: 0 | O71: =O31*$A$75 -> 0 | P71: 0 | Q71: 0 | R71: 0 | S71: 0 | T71: 0 | U71: 0 | V71: 0 | W71: 0 | X71: 0 | Y71: 0 | Z71: 0 | AA71: 0 | AB71: 0 | AC71: 0 | AD71: 0 | AE71: 0 | AF71: 0 | AG71: 0 | AH71: 0 | AI71: 0 | AJ71: 0 | AK71: 0 | AL71: 0 | AM71: 0 | AN71: 0 | AO71: 0 | AP71: 0 | AR71: =SUM(C71:AP71) -> 395454
A72: Small I & C | B72: Cookstown + Magherafelt | C72: =C32*$A$75 -> 0 | D72: 108556 | E72: 42647 | F72: 65909 | G72: 65909 | H72: 65909 | I72: 65909 | J72: 65909 | K72: 65909 | L72: 65909 | M72: 0 | N72: 0 | O72: =O32*$A$75 -> 0 | P72: 0 | Q72: 0 | R72: 0 | S72: 0 | T72: 0 | U72: 0 | V72: 0 | W72: 0 | X72: 0 | Y72: 0 | Z72: 0 | AA72: 0 | AB72: 0 | AC72: 0 | AD72: 0 | AE72: 0 | AF72: 0 | AG72: 0 | AH72: 0 | AI72: 0 | AJ72: 0 | AK72: 0 | AL72: 0 | AM72: 0 | AN72: 0 | AO72: 0 | AP72: 0 | AR72: =SUM(C72:AP72) -> 612566
B73: Omagh | C73: =C33*$A$75 -> 0 | D73: 54278 | E73: 23262 | F73: 31016 | G73: 31016 | H73: 31016 | I73: 31016 | J73: 31016 | K73: 31016 | L73: 31016 | M73: 0 | N73: 0 | O73: =O33*$A$75 -> 0 | P73: 0 | Q73: 0 | R73: 0 | S73: 0 | T73: 0 | U73: 0 | V73: 0 | W73: 0 | X73: 0 | Y73: 0 | Z73: 0 | AA73: 0 | AB73: 0 | AC73: 0 | AD73: 0 | AE73: 0 | AF73: 0 | AG73: 0 | AH73: 0 | AI73: 0 | AJ73: 0 | AK73: 0 | AL73: 0 | AM73: 0 | AN73: 0 | AO73: 0 | AP73: 0 | AR73: =SUM(C73:AP73) -> 294652
B74: Enniskillen + Derylin | C74: =C34*$A$75 -> 0 | D74: 42647 | E74: 15508 | F74: 27139 | G74: 27139 | H74: 27139 | I74: 27139 | J74: 27139 | K74: 27139 | L74: 27139 | M74: 0 | N74: 0 | O74: =O34*$A$75 -> 0 | P74: 0 | Q74: 0 | R74: 0 | S74: 0 | T74: 0 | U74: 0 | V74: 0 | W74: 0 | X74: 0 | Y74: 0 | Z74: 0 | AA74: 0 | AB74: 0 | AC74: 0 | AD74: 0 | AE74: 0 | AF74: 0 | AG74: 0 | AH74: 0 | AI74: 0 | AJ74: 0 | AK74: 0 | AL74: 0 | AM74: 0 | AN74: 0 | AO74: 0 | AP74: 0 | AR74: =SUM(C74:AP74) -> 248128
A75: =ROUND(3704*1.0467,0) -> 3877 | B75: Strabane | C75: =C35*$A$75 -> 0 | D75: 31016 | E75: 11631 | F75: 19385 | G75: 19385 | H75: 19385 | I75: 19385 | J75: 19385 | K75: 19385 | L75: 19385 | M75: 0 | N75: 0 | O75: =O35*$A$75 -> 0 | P75: 0 | Q75: 0 | R75: 0 | S75: 0 | T75: 0 | U75: 0 | V75: 0 | W75: 0 | X75: 0 | Y75: 0 | Z75: 0 | AA75: 0 | AB75: 0 | AC75: 0 | AD75: 0 | AE75: 0 | AF75: 0 | AG75: 0 | AH75: 0 | AI75: 0 | AJ75: 0 | AK75: 0 | AL75: 0 | AM75: 0 | AN75: 0 | AO75: 0 | AP75: 0 | AR75: =SUM(C75:AP75) -> 178342
B76: Total | C76: =SUM(C71:C75) -> 0 | D76: 306283 | E76: 120187 | F76: 186096 | G76: 186096 | H76: 186096 | I76: 186096 | J76: 186096 | K76: 186096 | L76: 186096 | M76: 0 | N76: 0 | O76: =SUM(O71:O75) -> 0 | P76: 0 | Q76: 0 | R76: 0 | S76: 0 | T76: 0 | U76: 0 | V76: 0 | W76: 0 | X76: 0 | Y76: 0 | Z76: 0 | AA76: 0 | AB76: 0 | AC76: 0 | AD76: 0 | AE76: 0 | AF76: 0 | AG76: 0 | AH76: 0 | AI76: 0 | AJ76: 0 | AK76: 0 | AL76: 0 | AM76: 0 | AN76: 0 | AO76: 0 | AP76: 0 | AR76: =SUM(AR71:AR75) -> 1729142
B77: Dungannon + Coalisland | C77: =C37*$A$81 -> 0 | D77: =D37*$A$81 -> 48735 | E77: 21660 | F77: 27075 | G77: 27075 | H77: 27075 | I77: 27075 | J77: 27075 | K77: 27075 | L77: 27075 | M77: 0 | N77: 0 | O77: =O37*$A$81 -> 0 | P77: 0 | Q77: 0 | R77: 0 | S77: 0 | T77: 0 | U77: 0 | V77: 0 | W77: 0 | X77: 0 | Y77: 0 | Z77: 0 | AA77: 0 | AB77: 0 | AC77: 0 | AD77: 0 | AE77: 0 | AF77: 0 | AG77: 0 | AH77: 0 | AI77: 0 | AJ77: 0 | AK77: 0 | AL77: 0 | AM77: 0 | AN77: 0 | AO77: 0 | AP77: 0 | AR77: =SUM(C77:AP77) -> 259920
A78: Medium I & C | B78: Cookstown + Magherafelt | C78: =C38*$A$81 -> 0 | D78: 113715 | E78: 43320 | F78: 64980 | G78: 64980 | H78: 64980 | I78: 64980 | J78: 64980 | K78: 64980 | L78: 64980 | M78: 0 | N78: 0 | O78: =O38*$A$81 -> 0 | P78: 0 | Q78: 0 | R78: 0 | S78: 0 | T78: 0 | U78: 0 | V78: 0 | W78: 0 | X78: 0 | Y78: 0 | Z78: 0 | AA78: 0 | AB78: 0 | AC78: 0 | AD78: 0 | AE78: 0 | AF78: 0 | AG78: 0 | AH78: 0 | AI78: 0 | AJ78: 0 | AK78: 0 | AL78: 0 | AM78: 0 | AN78: 0 | AO78: 0 | AP78: 0 | AR78: =SUM(C78:AP78) -> 611895
B79: Omagh | C79: =C39*$A$81 -> 0 | D79: 64980 | E79: 27075 | F79: 37905 | G79: 37905 | H79: 37905 | I79: 37905 | J79: 37905 | K79: 37905 | L79: 37905 | M79: 0 | N79: 0 | O79: =O39*$A$81 -> 0 | P79: 0 | Q79: 0 | R79: 0 | S79: 0 | T79: 0 | U79: 0 | V79: 0 | W79: 0 | X79: 0 | Y79: 0 | Z79: 0 | AA79: 0 | AB79: 0 | AC79: 0 | AD79: 0 | AE79: 0 | AF79: 0 | AG79: 0 | AH79: 0 | AI79: 0 | AJ79: 0 | AK79: 0 | AL79: 0 | AM79: 0 | AN79: 0 | AO79: 0 | AP79: 0 | AR79: =SUM(C79:AP79) -> 357390
B80: Enniskillen + Derylin | C80: =C40*$A$81 -> 0 | D80: 43320 | E80: 16245 | F80: 27075 | G80: 27075 | H80: 27075 | I80: 27075 | J80: 27075 | K80: 27075 | L80: 27075 | M80: 0 | N80: 0 | O80: =O40*$A$81 -> 0 | P80: 0 | Q80: 0 | R80: 0 | S80: 0 | T80: 0 | U80: 0 | V80: 0 | W80: 0 | X80: 0 | Y80: 0 | Z80: 0 | AA80: 0 | AB80: 0 | AC80: 0 | AD80: 0 | AE80: 0 | AF80: 0 | AG80: 0 | AH80: 0 | AI80: 0 | AJ80: 0 | AK80: 0 | AL80: 0 | AM80: 0 | AN80: 0 | AO80: 0 | AP80: 0 | AR80: =SUM(C80:AP80) -> 249090
A81: =ROUND(5173*1.0467,0) -> 5415 | B81: Strabane | C81: =C41*$A$81 -> 0 | D81: 32490 | E81: 16245 | F81: 21660 | G81: 21660 | H81: 21660 | I81: 21660 | J81: 21660 | K81: 21660 | L81: 21660 | M81: 0 | N81: 0 | O81: =O41*$A$81 -> 0 | P81: 0 | Q81: 0 | R81: 0 | S81: 0 | T81: 0 | U81: 0 | V81: 0 | W81: 0 | X81: 0 | Y81: 0 | Z81: 0 | AA81: 0 | AB81: 0 | AC81: 0 | AD81: 0 | AE81: 0 | AF81: 0 | AG81: 0 | AH81: 0 | AI81: 0 | AJ81: 0 | AK81: 0 | AL81: 0 | AM81: 0 | AN81: 0 | AO81: 0 | AP81: 0 | AR81: =SUM(C81:AP81) -> 200355
B82: Total | C82: =SUM(C77:C81) -> 0 | D82: 303240 | E82: 124545 | F82: 178695 | G82: 178695 | H82: 178695 | I82: 178695 | J82: 178695 | K82: 178695 | L82: 178695 | M82: 0 | N82: 0 | O82: =SUM(O77:O81) -> 0 | P82: 0 | Q82: 0 | R82: 0 | S82: 0 | T82: 0 | U82: 0 | V82: 0 | W82: 0 | X82: 0 | Y82: 0 | Z82: 0 | AA82: 0 | AB82: 0 | AC82: 0 | AD82: 0 | AE82: 0 | AF82: 0 | AG82: 0 | AH82: 0 | AI82: 0 | AJ82: 0 | AK82: 0 | AL82: 0 | AM82: 0 | AN82: 0 | AO82: 0 | AP82: 0 | AR82: =SUM(AR77:AR81) -> 1678650
B83: Dungannon + Coalisland | C83: =C43*$A$87 -> 0 | D83: =D43*$A$87 -> 43320 | E83: 43320 | F83: 0 | G83: 0 | H83: 0 | I83: 0 | J83: 0 | K83: 0 | L83: 0 | M83: 0 | N83: 0 | O83: =O43*$A$87 -> 0 | P83: 0 | Q83: 0 | R83: 0 | S83: 0 | T83: 0 | U83: 0 | V83: 0 | W83: 0 | X83: 0 | Y83: 0 | Z83: 0 | AA83: 0 | AB83: 0 | AC83: 0 | AD83: 0 | AE83: 0 | AF83: 0 | AG83: 0 | AH83: 0 | AI83: 0 | AJ83: 0 | AK83: 0 | AL83: 0 | AM83: 0 | AN83: 0 | AO83: 0 | AP83: 0 | AR83: =SUM(C83:AP83) -> 86640
A84: Large I & C | B84: Cookstown + Magherafelt | C84: =C44*$A$87 -> 0 | D84: 43320 | E84: 43320 | F84: 0 | G84: 0 | H84: 0 | I84: 0 | J84: 0 | K84: 0 | L84: 0 | M84: 0 | N84: 0 | O84: =O44*$A$87 -> 0 | P84: 0 | Q84: 0 | R84: 0 | S84: 0 | T84: 0 | U84: 0 | V84: 0 | W84: 0 | X84: 0 | Y84: 0 | Z84: 0 | AA84: 0 | AB84: 0 | AC84: 0 | AD84: 0 | AE84: 0 | AF84: 0 | AG84: 0 | AH84: 0 | AI84: 0 | AJ84: 0 | AK84: 0 | AL84: 0 | AM84: 0 | AN84: 0 | AO84: 0 | AP84: 0 | AR84: =SUM(C84:AP84) -> 86640
B85: Omagh | C85: =C45*$A$87 -> 0 | D85: 54150 | E85: 54150 | F85: 0 | G85: 0 | H85: 0 | I85: 0 | J85: 0 | K85: 0 | L85: 0 | M85: 0 | N85: 0 | O85: =O45*$A$87 -> 0 | P85: 0 | Q85: 0 | R85: 0 | S85: 0 | T85: 0 | U85: 0 | V85: 0 | W85: 0 | X85: 0 | Y85: 0 | Z85: 0 | AA85: 0 | AB85: 0 | AC85: 0 | AD85: 0 | AE85: 0 | AF85: 0 | AG85: 0 | AH85: 0 | AI85: 0 | AJ85: 0 | AK85: 0 | AL85: 0 | AM85: 0 | AN85: 0 | AO85: 0 | AP85: 0 | AR85: =SUM(C85:AP85) -> 108300
B86: Enniskillen + Derylin | C86: =C46*$A$87 -> 0 | D86: 32490 | E86: 32490 | F86: 0 | G86: 0 | H86: 0 | I86: 0 | J86: 0 | K86: 0 | L86: 0 | M86: 0 | N86: 0 | O86: =O46*$A$87 -> 0 | P86: 0 | Q86: 0 | R86: 0 | S86: 0 | T86: 0 | U86: 0 | V86: 0 | W86: 0 | X86: 0 | Y86: 0 | Z86: 0 | AA86: 0 | AB86: 0 | AC86: 0 | AD86: 0 | AE86: 0 | AF86: 0 | AG86: 0 | AH86: 0 | AI86: 0 | AJ86: 0 | AK86: 0 | AL86: 0 | AM86: 0 | AN86: 0 | AO86: 0 | AP86: 0 | AR86: =SUM(C86:AP86) -> 64980
A87: =ROUND(10347*1.0467,0) -> 10830 | B87: Strabane | C87: =C47*$A$87 -> 0 | D87: 21660 | E87: 21660 | F87: 0 | G87: 0 | H87: 0 | I87: 0 | J87: 0 | K87: 0 | L87: 0 | M87: 0 | N87: 0 | O87: =O47*$A$87 -> 0 | P87: 0 | Q87: 0 | R87: 0 | S87: 0 | T87: 0 | U87: 0 | V87: 0 | W87: 0 | X87: 0 | Y87: 0 | Z87: 0 | AA87: 0 | AB87: 0 | AC87: 0 | AD87: 0 | AE87: 0 | AF87: 0 | AG87: 0 | AH87: 0 | AI87: 0 | AJ87: 0 | AK87: 0 | AL87: 0 | AM87: 0 | AN87: 0 | AO87: 0 | AP87: 0 | AR87: =SUM(C87:AP87) -> 43320
B88: Total | C88: =SUM(C83:C87) -> 0 | D88: 194940 | E88: 194940 | F88: 0 | G88: 0 | H88: 0 | I88: 0 | J88: 0 | K88: 0 | L88: 0 | M88: 0 | N88: 0 | O88: =SUM(O83:O87) -> 0 | P88: 0 | Q88: 0 | R88: 0 | S88: 0 | T88: 0 | U88: 0 | V88: 0 | W88: 0 | X88: 0 | Y88: 0 | Z88: 0 | AA88: 0 | AB88: 0 | AC88: 0 | AD88: 0 | AE88: 0 | AF88: 0 | AG88: 0 | AH88: 0 | AI88: 0 | AJ88: 0 | AK88: 0 | AL88: 0 | AM88: 0 | AN88: 0 | AO88: 0 | AP88: 0 | AR88: =SUM(AR83:AR87) -> 389880
B89: Dungannon + Coalisland | C89: =C49*$A$93 -> 100900 | D89: =D49*$A$93 -> 75675 | E89: 0 | F89: 0 | G89: 0 | H89: 0 | I89: 0 | J89: 0 | K89: 0 | L89: 0 | M89: 0 | N89: 0 | O89: =O49*$A$93 -> 0 | P89: 0 | Q89: 0 | R89: 0 | S89: 0 | T89: 0 | U89: 0 | V89: 0 | W89: 0 | X89: 0 | Y89: 0 | Z89: 0 | AA89: 0 | AB89: 0 | AC89: 0 | AD89: 0 | AE89: 0 | AF89: 0 | AG89: 0 | AH89: 0 | AI89: 0 | AJ89: 0 | AK89: 0 | AL89: 0 | AM89: 0 | AN89: 0 | AO89: 0 | AP89: 0 | AR89: =SUM(C89:AP89) -> 176575
A90: Contract I & C | B90: Cookstown + Magherafelt | C90: =C50*$A$93 -> 100900 | D90: 75675 | E90: 0 | F90: 0 | G90: 0 | H90: 0 | I90: 0 | J90: 0 | K90: 0 | L90: 0 | M90: 0 | N90: 0 | O90: =O50*$A$93 -> 0 | P90: 0 | Q90: 0 | R90: 0 | S90: 0 | T90: 0 | U90: 0 | V90: 0 | W90: 0 | X90: 0 | Y90: 0 | Z90: 0 | AA90: 0 | AB90: 0 | AC90: 0 | AD90: 0 | AE90: 0 | AF90: 0 | AG90: 0 | AH90: 0 | AI90: 0 | AJ90: 0 | AK90: 0 | AL90: 0 | AM90: 0 | AN90: 0 | AO90: 0 | AP90: 0 | AR90: =SUM(C90:AP90) -> 176575
B91: Omagh | C91: =C51*$A$93 -> 75675 | D91: 75675 | E91: 0 | F91: 0 | G91: 0 | H91: 0 | I91: 0 | J91: 0 | K91: 0 | L91: 0 | M91: 0 | N91: 0 | O91: =O51*$A$93 -> 0 | P91: 0 | Q91: 0 | R91: 0 | S91: 0 | T91: 0 | U91: 0 | V91: 0 | W91: 0 | X91: 0 | Y91: 0 | Z91: 0 | AA91: 0 | AB91: 0 | AC91: 0 | AD91: 0 | AE91: 0 | AF91: 0 | AG91: 0 | AH91: 0 | AI91: 0 | AJ91: 0 | AK91: 0 | AL91: 0 | AM91: 0 | AN91: 0 | AO91: 0 | AP91: 0 | AR91: =SUM(C91:AP91) -> 151350
B92: Enniskillen + Derylin | C92: =C52*$A$93 -> 75675 | D92: 75675 | E92: 0 | F92: 0 | G92: 0 | H92: 0 | I92: 0 | J92: 0 | K92: 0 | L92: 0 | M92: 0 | N92: 0 | O92: =O52*$A$93 -> 0 | P92: 0 | Q92: 0 | R92: 0 | S92: 0 | T92: 0 | U92: 0 | V92: 0 | W92: 0 | X92: 0 | Y92: 0 | Z92: 0 | AA92: 0 | AB92: 0 | AC92: 0 | AD92: 0 | AE92: 0 | AF92: 0 | AG92: 0 | AH92: 0 | AI92: 0 | AJ92: 0 | AK92: 0 | AL92: 0 | AM92: 0 | AN92: 0 | AO92: 0 | AP92: 0 | AR92: =SUM(C92:AP92) -> 151350
A93: =ROUND(24100*1.0467,0) -> 25225 | B93: Strabane | C93: =C53*$A$93 -> 25225 | D93: 0 | E93: 0 | F93: 0 | G93: 0 | H93: 0 | I93: 0 | J93: 0 | K93: 0 | L93: 0 | M93: 0 | N93: 0 | O93: =O53*$A$93 -> 0 | P93: 0 | Q93: 0 | R93: 0 | S93: 0 | T93: 0 | U93: 0 | V93: 0 | W93: 0 | X93: 0 | Y93: 0 | Z93: 0 | AA93: 0 | AB93: 0 | AC93: 0 | AD93: 0 | AE93: 0 | AF93: 0 | AG93: 0 | AH93: 0 | AI93: 0 | AJ93: 0 | AK93: 0 | AL93: 0 | AM93: 0 | AN93: 0 | AO93: 0 | AP93: 0 | AR93: =SUM(C93:AP93) -> 25225
B94: Total | C94: =SUM(C89:C93) -> 378375 | D94: 302700 | E94: 0 | F94: 0 | G94: 0 | H94: 0 | I94: 0 | J94: 0 | K94: 0 | L94: 0 | M94: 0 | N94: 0 | O94: =SUM(O89:O93) -> 0 | P94: 0 | Q94: 0 | R94: 0 | S94: 0 | T94: 0 | U94: 0 | V94: 0 | W94: 0 | X94: 0 | Y94: 0 | Z94: 0 | AA94: 0 | AB94: 0 | AC94: 0 | AD94: 0 | AE94: 0 | AF94: 0 | AG94: 0 | AH94: 0 | AI94: 0 | AJ94: 0 | AK94: 0 | AL94: 0 | AM94: 0 | AN94: 0 | AO94: 0 | AP94: 0 | AR94: =SUM(AR89:AR93) -> 681075
C96: Period 1 | H96: Period 2 | M96: Period 3 | R96: Period 4 | W96: Period 5 | AB96: Period 6 | AG96: Period 7 | AL96: Period 8
A97: Total Capex £m | C97: 1 | D97: 2 | E97: 3 | F97: 4 | G97: 5 | H97: 6 | I97: 7 | J97: 8 | K97: 9 | L97: 10 | M97: 11 | N97: 12 | O97: 13 | P97: 14 | Q97: 15 | R97: 16 | S97: 17 | T97: 18 | U97: 19 | V97: 20 | W97: 21 | X97: 22 | Y97: 23 | Z97: 24 | AA97: 25 | AB97: 26 | AC97: 27 | AD97: 28 | AE97: 29 | AF97: 30 | AG97: 31 | AH97: 32 | AI97: 33 | AJ97: 34 | AK97: 35 | AL97: 36 | AM97: 37 | AN97: 38 | AO97: 39 | AP97: 40 | AR97: Total
B98: Dungannon + Coalisland | C98: =ROUND((C59+C65+C71+C77+C83+C89)/1000000,3) -> 0.101 | D98: =ROUND((D59+D65+D71+D77+D83+D89)/1000000,3) -> 1.51 | E98: 0.964 | F98: 0.693 | G98: 0.693 | H98: 0.693 | I98: 0.625 | J98: 0.608 | K98: 0.608 | L98: 0.608 | M98: 0.538 | N98: 0.623 | O98: 0.623 | P98: 0.623 | Q98: 0.623 | R98: 0.623 | S98: 0.623 | T98: 0.623 | U98: 0.623 | V98: 0.623 | W98: 0.623 | X98: 0.483 | Y98: 0.483 | Z98: 0.483 | AA98: 0.483 | AB98: 0.483 | AC98: 0.483 | AD98: 0.483 | AE98: 0.483 | AF98: 0.483 | AG98: 0.483 | AH98: 0.069 | AI98: 0.069 | AJ98: 0.069 | AK98: 0.069 | AL98: 0.069 | AM98: 0.069 | AN98: 0.069 | AO98: 0.069 | AP98: 0.069 | AR98: =SUM(C98:AP98) -> 19.322
A99: Connection | B99: Cookstown + Magherafelt | C99: =ROUND((C60+C66+C72+C78+C84+C90)/1000000,3) -> 0.101 | D99: =ROUND((D60+D66+D72+D78+D84+D90)/1000000,3) -> 1.701 | E99: 1.059 | F99: 0.786 | G99: 0.797 | H99: 0.803 | I99: 0.7 | J99: 0.712 | K99: 0.712 | L99: 0.712 | M99: 0.581 | N99: 0.667 | O99: 0.667 | P99: 0.667 | Q99: 0.667 | R99: 0.667 | S99: 0.667 | T99: 0.667 | U99: 0.667 | V99: 0.667 | W99: 0.667 | X99: 0.524 | Y99: 0.524 | Z99: 0.524 | AA99: 0.524 | AB99: 0.524 | AC99: 0.524 | AD99: 0.524 | AE99: 0.524 | AF99: 0.524 | AG99: 0.524 | AH99: 0.068 | AI99: 0.068 | AJ99: 0.068 | AK99: 0.068 | AL99: 0.068 | AM99: 0.068 | AN99: 0.068 | AO99: 0.068 | AP99: 0.068 | AR99: =SUM(C99:AP99) -> 21.186
A100: Costs | B100: Omagh | C100: =ROUND((C61+C67+C73+C79+C85+C91)/1000000,3) -> 0.076 | D100: =ROUND((D61+D67+D73+D79+D85+D91)/1000000,3) -> 1.691 | E100: 1.072 | F100: 0.771 | G100: 0.748 | H100: 0.748 | I100: 0.653 | J100: 0.675 | K100: 0.675 | L100: 0.675 | M100: 0.606 | N100: 0.702 | O100: 0.702 | P100: 0.702 | Q100: 0.702 | R100: 0.702 | S100: 0.702 | T100: 0.702 | U100: 0.702 | V100: 0.702 | W100: 0.702 | X100: 0.544 | Y100: 0.544 | Z100: 0.544 | AA100: 0.544 | AB100: 0.544 | AC100: 0.544 | AD100: 0.544 | AE100: 0.544 | AF100: 0.544 | AG100: 0.544 | AH100: 0.067 | AI100: 0.067 | AJ100: 0.067 | AK100: 0.067 | AL100: 0.067 | AM100: 0.067 | AN100: 0.067 | AO100: 0.067 | AP100: 0.067 | AR100: =SUM(C100:AP100) -> 21.453
B101: Enniskillen + Derylin | C101: =ROUND((C62+C68+C74+C80+C86+C92)/1000000,3) -> 0.076 | D101: =ROUND((D62+D68+D74+D80+D86+D92)/1000000,3) -> 1.256 | E101: 0.773 | F101: 0.55 | G101: 0.564 | H101: 0.55 | I101: 0.483 | J101: 0.497 | K101: 0.497 | L101: 0.497 | M101: 0.442 | N101: 0.51 | O101: 0.51 | P101: 0.51 | Q101: 0.51 | R101: 0.51 | S101: 0.51 | T101: 0.51 | U101: 0.51 | V101: 0.51 | W101: 0.51 | X101: 0.398 | Y101: 0.398 | Z101: 0.398 | AA101: 0.398 | AB101: 0.398 | AC101: 0.398 | AD101: 0.398 | AE101: 0.398 | AF101: 0.398 | AG101: 0.398 | AH101: 0.041 | AI101: 0.041 | AJ101: 0.041 | AK101: 0.041 | AL101: 0.041 | AM101: 0.041 | AN101: 0.041 | AO101: 0.041 | AP101: 0.041 | AR101: =SUM(C101:AP101) -> 15.634
B102: Strabane | C102: =ROUND((C63+C69+C75+C81+C87+C93)/1000000,3) -> 0.025 | D102: =ROUND((D63+D69+D75+D81+D87+D93)/1000000,3) -> 1.088 | E102: 0.627 | F102: 0.479 | G102: 0.46 | H102: 0.46 | I102: 0.398 | J102: 0.38 | K102: 0.38 | L102: 0.38 | M102: 0.339 | N102: 0.419 | O102: 0.419 | P102: 0.419 | Q102: 0.419 | R102: 0.419 | S102: 0.419 | T102: 0.419 | U102: 0.419 | V102: 0.419 | W102: 0.419 | X102: 0.284 | Y102: 0.284 | Z102: 0.284 | AA102: 0.284 | AB102: 0.284 | AC102: 0.284 | AD102: 0.284 | AE102: 0.284 | AF102: 0.284 | AG102: 0.284 | AH102: 0.017 | AI102: 0.017 | AJ102: 0.017 | AK102: 0.017 | AL102: 0.017 | AM102: 0.017 | AN102: 0.017 | AO102: 0.017 | AP102: 0.017 | AR102: =SUM(C102:AP102) -> 12.199
B103: Total | C103: =SUM(C98:C102) -> 0.379 | D103: 7.246 | E103: 4.495 | F103: 3.279 | G103: 3.262 | H103: 3.254 | I103: 2.859 | J103: 2.872 | K103: 2.872 | L103: 2.872 | M103: =SUM(M98:M102) -> 2.506 | N103: 2.921 | O103: 2.921 | P103: 2.921 | Q103: 2.921 | R103: 2.921 | S103: 2.921 | T103: 2.921 | U103: 2.921 | V103: 2.921 | W103: 2.921 | X103: 2.233 | Y103: 2.233 | Z103: 2.233 | AA103: 2.233 | AB103: 2.233 | AC103: 2.233 | AD103: 2.233 | AE103: 2.233 | AF103: 2.233 | AG103: 2.233 | AH103: 0.262 | AI103: 0.262 | AJ103: 0.262 | AK103: 0.262 | AL103: 0.262 | AM103: 0.262 | AN103: 0.262 | AO103: 0.262 | AP103: 0.262 | AR103: =SUM(AR98:AR102) -> 89.794
B104: Dungannon + Coalisland | C104: 1.909 | D104: 0.479 | E104: 0.319 | F104: 0.099 | G104: 0.099 | H104: 0.099 | I104: 0.099 | J104: 0.099 | K104: 0.099 | L104: 0.099 | M104: 0.099 | AR104: =SUM(C104:AP104) -> 3.499
A105: Network | B105: Cookstown + Magherafelt | C105: 2.08 | D105: 1.278 | E105: 0.852 | F105: 0.266 | G105: 0.266 | H105: 0.266 | I105: 0.266 | J105: 0.266 | K105: 0.266 | L105: 0.266 | M105: 0.266 | AR105: =SUM(C105:AP105) -> 6.338
A106: Costs | B106: Omagh | C106: 2.154 | D106: 0.279 | E106: 0.186 | F106: 0.059 | G106: 0.059 | H106: 0.059 | I106: 0.059 | J106: 0.059 | K106: 0.059 | L106: 0.059 | M106: 0.059 | AR106: =SUM(C106:AP106) -> 3.091
B107: Enniskillen + Derylin | C107: 0.825 | D107: 0.487 | E107: 0.324 | F107: 0.102 | G107: 0.102 | H107: 0.102 | I107: 0.102 | J107: 0.102 | K107: 0.102 | L107: 0.102 | M107: 0.102 | AR107: =SUM(C107:AP107) -> 2.452
B108: Strabane | C108: 0.081 | D108: 0.517 | E108: 0.345 | F108: 0.108 | G108: 0.108 | H108: 0.108 | I108: 0.108 | J108: 0.108 | K108: 0.108 | L108: 0.108 | M108: 0.108 | AR108: =SUM(C108:AP108) -> 1.807
B109: Total | C109: =SUM(C104:C108) -> 7.049 | D109: 3.04 | E109: 2.026 | F109: 0.634 | G109: 0.634 | H109: 0.634 | I109: 0.634 | J109: 0.634 | K109: 0.634 | L109: 0.634 | M109: 0.634 | N109: =SUM(N104:N108) -> 0 | O109: 0 | P109: 0 | Q109: 0 | R109: 0 | S109: =SUM(S104:S108) -> 0 | T109: 0 | U109: 0 | V109: 0 | W109: 0 | X109: =SUM(X104:X108) -> 0 | Y109: 0 | Z109: 0 | AA109: 0 | AB109: 0 | AC109: 0 | AD109: 0 | AE109: 0 | AF109: 0 | AG109: 0 | AH109: 0 | AI109: 0 | AJ109: 0 | AK109: 0 | AL109: 0 | AM109: 0 | AN109: 0 | AO109: 0 | AP109: 0 | AR109: =SUM(AR104:AR108) -> 17.187
B110: Dungannon + Coalisland | C110: =C98+C104 -> 2.01 | D110: =D98+D104 -> 1.989 | E110: 1.283 | F110: 0.792 | G110: 0.792 | H110: 0.792 | I110: 0.724 | J110: 0.707 | K110: 0.707 | L110: 0.707 | M110: 0.637 | N110: 0.623 | O110: =O98+O104 -> 0.623 | P110: 0.623 | Q110: 0.623 | R110: 0.623 | S110: 0.623 | T110: 0.623 | U110: 0.623 | V110: 0.623 | W110: 0.623 | X110: 0.483 | Y110: 0.483 | Z110: 0.483 | AA110: 0.483 | AB110: 0.483 | AC110: 0.483 | AD110: 0.483 | AE110: 0.483 | AF110: 0.483 | AG110: 0.483 | AH110: 0.069 | AI110: 0.069 | AJ110: 0.069 | AK110: 0.069 | AL110: 0.069 | AM110: 0.069 | AN110: 0.069 | AO110: 0.069 | AP110: 0.069 | AR110: =SUM(C110:AP110) -> 22.821
A111: Capex £m | B111: Cookstown + Magherafelt | C111: =C99+C105 -> 2.181 | D111: 2.979 | E111: 1.911 | F111: 1.052 | G111: 1.063 | H111: 1.069 | I111: 0.966 | J111: 0.978 | K111: 0.978 | L111: 0.978 | M111: 0.847 | N111: 0.667 | O111: =O99+O105 -> 0.667 | P111: 0.667 | Q111: 0.667 | R111: 0.667 | S111: 0.667 | T111: 0.667 | U111: 0.667 | V111: 0.667 | W111: 0.667 | X111: 0.524 | Y111: 0.524 | Z111: 0.524 | AA111: 0.524 | AB111: 0.524 | AC111: 0.524 | AD111: 0.524 | AE111: 0.524 | AF111: 0.524 | AG111: 0.524 | AH111: 0.068 | AI111: 0.068 | AJ111: 0.068 | AK111: 0.068 | AL111: 0.068 | AM111: 0.068 | AN111: 0.068 | AO111: 0.068 | AP111: 0.068 | AR111: =SUM(C111:AP111) -> 27.524
B112: Omagh | C112: 2.23 | D112: 1.97 | E112: 1.258 | F112: 0.83 | G112: 0.807 | H112: 0.807 | I112: 0.712 | J112: 0.734 | K112: 0.734 | L112: 0.734 | M112: 0.665 | N112: 0.702 | O112: =O100+O106 -> 0.702 | P112: 0.702 | Q112: 0.702 | R112: 0.702 | S112: 0.702 | T112: 0.702 | U112: 0.702 | V112: 0.702 | W112: 0.702 | X112: 0.544 | Y112: 0.544 | Z112: 0.544 | AA112: 0.544 | AB112: 0.544 | AC112: 0.544 | AD112: 0.544 | AE112: 0.544 | AF112: 0.544 | AG112: 0.544 | AH112: 0.067 | AI112: 0.067 | AJ112: 0.067 | AK112: 0.067 | AL112: 0.067 | AM112: 0.067 | AN112: 0.067 | AO112: 0.067 | AP112: 0.067 | AR112: =SUM(C112:AP112) -> 24.544
B113: Enniskillen + Derylin | C113: 0.901 | D113: 1.743 | E113: 1.097 | F113: 0.652 | G113: 0.666 | H113: 0.652 | I113: 0.585 | J113: 0.599 | K113: 0.599 | L113: 0.599 | M113: 0.544 | N113: 0.51 | O113: =O101+O107 -> 0.51 | P113: 0.51 | Q113: 0.51 | R113: 0.51 | S113: 0.51 | T113: 0.51 | U113: 0.51 | V113: 0.51 | W113: 0.51 | X113: 0.398 | Y113: 0.398 | Z113: 0.398 | AA113: 0.398 | AB113: 0.398 | AC113: 0.398 | AD113: 0.398 | AE113: 0.398 | AF113: 0.398 | AG113: 0.398 | AH113: 0.041 | AI113: 0.041 | AJ113: 0.041 | AK113: 0.041 | AL113: 0.041 | AM113: 0.041 | AN113: 0.041 | AO113: 0.041 | AP113: 0.041 | AR113: =SUM(C113:AP113) -> 18.086
B114: Strabane | C114: 0.106 | D114: 1.605 | E114: 0.972 | F114: 0.587 | G114: 0.568 | H114: 0.568 | I114: 0.506 | J114: 0.488 | K114: 0.488 | L114: 0.488 | M114: 0.447 | N114: 0.419 | O114: =O102+O108 -> 0.419 | P114: 0.419 | Q114: 0.419 | R114: 0.419 | S114: 0.419 | T114: 0.419 | U114: 0.419 | V114: 0.419 | W114: 0.419 | X114: 0.284 | Y114: 0.284 | Z114: 0.284 | AA114: 0.284 | AB114: 0.284 | AC114: 0.284 | AD114: 0.284 | AE114: 0.284 | AF114: 0.284 | AG114: 0.284 | AH114: 0.017 | AI114: 0.017 | AJ114: 0.017 | AK114: 0.017 | AL114: 0.017 | AM114: 0.017 | AN114: 0.017 | AO114: 0.017 | AP114: 0.017 | AR114: =SUM(C114:AP114) -> 14.006
B115: Total | C115: =SUM(C110:C114) -> 7.428 | D115: =SUM(D110:D114) -> 10.286 | E115: 6.521 | F115: 3.913 | G115: 3.896 | H115: 3.888 | I115: 3.493 | J115: 3.506 | K115: 3.506 | L115: 3.506 | M115: 3.14 | N115: 2.921 | O115: 2.921 | P115: 2.921 | Q115: 2.921 | R115: 2.921 | S115: 2.921 | T115: 2.921 | U115: 2.921 | V115: 2.921 | W115: 2.921 | X115: 2.233 | Y115: 2.233 | Z115: 2.233 | AA115: 2.233 | AB115: 2.233 | AC115: 2.233 | AD115: 2.233 | AE115: 2.233 | AF115: 2.233 | AG115: 2.233 | AH115: 0.262 | AI115: 0.262 | AJ115: 0.262 | AK115: 0.262 | AL115: 0.262 | AM115: 0.262 | AN115: 0.262 | AO115: 0.262 | AP115: 0.262 | AR115: =SUM(AR110:AR114) -> 106.981
B116: Meter Replacement Costs | C116: 0 | D116: 0 | E116: 0 | F116: 0 | G116: 0 | H116: 0 | I116: 0 | J116: 0 | K116: 0 | L116: 0 | M116: 0 | N116: 0 | O116: 0 | P116: 0 | Q116: 0 | R116: 0 | S116: 0 | T116: 0 | U116: 0 | V116: 0 | W116: 0 | X116: 1.11 | Y116: 0.848 | Z116: 0.659 | AA116: 0.576 | AB116: 0.565 | AC116: 0.523 | AD116: 0.523 | AE116: 0.534 | AF116: 0.534 | AG116: 0.314 | AH116: 0.356 | AI116: 0.356 | AJ116: 0.356 | AK116: 0.356 | AL116: 0.356 | AM116: 0.356 | AN116: 0.356 | AO116: 0.356 | AP116: 0.356 | AR116: =SUM(C116:AP116) -> 9.39
A117: Lifecycle | B117: Annual Visit Costs | C117: 0 | D117: 0 | E117: 0.005 | F117: 0.005 | G117: 0.01 | H117: 0.01 | I117: 0.01 | J117: 0.01 | K117: 0.01 | L117: 0.01 | M117: 0.01 | N117: 0.01 | O117: 0.01 | P117: 0.01 | Q117: 0.01 | R117: 0.01 | S117: 0.01 | T117: 0.01 | U117: 0.01 | V117: 0.01 | W117: 0.01 | X117: 0.01 | Y117: 0.01 | Z117: 0.01 | AA117: 0.01 | AB117: 0.01 | AC117: 0.01 | AD117: 0.01 | AE117: 0.01 | AF117: 0.01 | AG117: 0.01 | AH117: 0.01 | AI117: 0.01 | AJ117: 0.01 | AK117: 0.01 | AL117: 0.01 | AM117: 0.01 | AN117: 0.01 | AO117: 0.01 | AP117: 0.01 | AR117: =SUM(C117:AP117) -> 0.37
A118: Expenditure | B118: Domestic Regulators & Batt Costs | C118: 0 | D118: 0 | E118: 0 | F118: 0 | G118: 0 | H118: 0 | I118: 0 | J118: 0 | K118: 0 | L118: 0 | M118: 0 | N118: 0.398 | O118: 0.304 | P118: 0.22 | Q118: 0.22 | R118: 0.22 | S118: 0.188 | T118: 0.199 | U118: 0.199 | V118: 0.199 | W118: 0.199 | X118: 0.628 | Y118: 0.523 | Z118: 0.44 | AA118: 0.45 | AB118: 0.45 | AC118: 0.419 | AD118: 0.419 | AE118: 0.419 | AF118: 0.419 | AG118: 0.419 | AH118: 0.806 | AI118: 0.701 | AJ118: 0.618 | AK118: 0.628 | AL118: 0.628 | AM118: 0.597 | AN118: 0.597 | AO118: 0.597 | AP118: 0.597 | AR118: =SUM(C118:AP118) -> 12.701
B119: IPRS Replacement Costs | C119: 0 | D119: 0 | E119: 0 | F119: 0 | G119: 0 | H119: 0 | I119: 0 | J119: 0 | K119: 0 | L119: 0 | M119: 0 | N119: 0 | O119: 0 | P119: 0 | Q119: 0 | R119: 0 | S119: 0 | T119: 0 | U119: 0 | V119: 0 | W119: 0.021 | X119: 0 | Y119: 0 | Z119: 0 | AA119: 0 | AB119: 0 | AC119: 0 | AD119: 0 | AE119: 0 | AF119: 0 | AG119: 0 | AH119: 0 | AI119: 0 | AJ119: 0 | AK119: 0 | AL119: 0 | AM119: 0 | AN119: 0 | AO119: 0 | AP119: 0 | AR119: =SUM(C119:AP119) -> 0.021
B120: Total | C120: =SUM(C116:C119) -> 0 | D120: 0 | E120: 0.005 | F120: 0.005 | G120: 0.01 | H120: 0.01 | I120: 0.01 | J120: 0.01 | K120: 0.01 | L120: 0.01 | M120: 0.01 | N120: 0.408 | O120: =SUM(O116:O119) -> 0.314 | P120: 0.23 | Q120: 0.23 | R120: 0.23 | S120: 0.198 | T120: =SUM(T116:T119) -> 0.209 | U120: 0.209 | V120: 0.209 | W120: 0.23 | X120: 1.748 | Y120: 1.381 | Z120: 1.109 | AA120: 1.036 | AB120: 1.025 | AC120: 0.952 | AD120: 0.952 | AE120: 0.963 | AF120: 0.963 | AG120: 0.743 | AH120: 1.172 | AI120: 1.067 | AJ120: 0.984 | AK120: 0.994 | AL120: 0.994 | AM120: 0.963 | AN120: 0.963 | AO120: 0.963 | AP120: 0.963 | AR120: =SUM(C120:AP120) -> 22.482
A121: Grand Total | C121: =C115+C120 -> 7.428 | D121: =D115+D120 -> 10.286 | E121: 6.526 | F121: 3.918 | G121: 3.906 | H121: 3.898 | I121: 3.503 | J121: 3.516 | K121: 3.516 | L121: 3.516 | M121: 3.15 | N121: 3.329 | O121: 3.235 | P121: 3.151 | Q121: 3.151 | R121: 3.151 | S121: 3.119 | T121: 3.13 | U121: 3.13 | V121: 3.13 | W121: 3.151 | X121: 3.981 | Y121: 3.614 | Z121: 3.342 | AA121: 3.269 | AB121: 3.258 | AC121: 3.185 | AD121: 3.185 | AE121: 3.196 | AF121: 3.196 | AG121: 2.976 | AH121: 1.434 | AI121: 1.329 | AJ121: 1.246 | AK121: 1.256 | AL121: 1.256 | AM121: 1.225 | AN121: 1.225 | AO121: 1.225 | AP121: 1.225 | AR121: =AR115+AR120 -> 129.463
A124: Existing | B124: Dungannon + Coalisland | C124: =ROUND((C13*$A$128)/1000000,3) -> 0 | D124: 0.109 | E124: 0.109 | F124: 0.068 | G124: 0.068 | H124: 0.068 | I124: 0.068 | J124: 0.068 | K124: 0.068 | L124: 0.068 | AR124: =SUM(C124:AP124) -> 0.694
A125: Domestic | B125: Cookstown + Magherafelt | C125: =ROUND((C14*$A$128)/1000000,3) -> 0 | D125: 0.12 | E125: 0.12 | F125: 0.075 | G125: 0.075 | H125: 0.075 | I125: 0.075 | J125: 0.075 | K125: 0.075 | L125: 0.075 | AR125: =SUM(C125:AP125) -> 0.765
A126: Connection | B126: Omagh | C126: =ROUND((C15*$A$128)/1000000,3) -> 0 | D126: 0.125 | E126: 0.125 | F126: 0.078 | G126: 0.078 | H126: 0.078 | I126: 0.078 | J126: 0.078 | K126: 0.078 | L126: 0.078 | AR126: =SUM(C126:AP126) -> 0.796
A127: Incentive | B127: Enniskillen + Derylin | C127: =ROUND((C16*$A$128)/1000000,3) -> 0 | D127: 0.094 | E127: 0.094 | F127: 0.059 | G127: 0.059 | H127: 0.059 | I127: 0.059 | J127: 0.059 | K127: 0.059 | L127: 0.059 | AR127: =SUM(C127:AP127) -> 0.601
A128: 425 | B128: Strabane | C128: =ROUND((C17*$A$128)/1000000,3) -> 0 | D128: 0.07 | E128: 0.07 | F128: 0.044 | G128: 0.044 | H128: 0.044 | I128: 0.044 | J128: 0.044 | K128: 0.044 | L128: 0.044 | AR128: =SUM(C128:AP128) -> 0.448
B129: Total | C129: =SUM(C124:C128) -> 0 | D129: 0.518 | E129: 0.518 | F129: 0.324 | G129: 0.324 | H129: 0.324 | I129: 0.324 | J129: 0.324 | K129: 0.324 | L129: 0.324 | AR129: =SUM(AR124:AR128) -> 3.304

Sheet Consumption & Revenue
A3: Consumption and Revenue Years 1 - 40
B6: All numbers in blue are input by Utility Regulator | G6: 0
B7: All numbers in black are calculated | G7: 0
B8: Applicants only permitted to input data into blank cells
C12: Consumption Therms pa | M12: pence / Kwh
C13: 480 | D13: 480 | E13: 400 | G13: 29.3071 | H13: Kwh per therm | M13: ='WACC & NPV Calculations'!M9 -> 0 | N13: ='WACC & NPV Calculations'!M8 -> 0
C16: Domestic Connections | G16: Consumption Gwh's | M16: Revenue £m
C17: Existing | H17: Industrial & Commercial | M17: Domestic - | N17: Large -
A18: Year | B18: PC period | C18: Private | D18: NIHE | E18: New | F18: Total | G18: Domestic | H18: Small | I18: Medium | J18: Large | K18: Contract | L18: Total | M18: Medium IC | N18: Contract IC | O18: Total
A19: 1 | B19: =ROUNDUP(A19/5,0) -> 1 | C19: =SUM('Capital Expenditure'!$C$18) -> 0 | D19: =SUM('Capital Expenditure'!$C$24) -> 0 | E19: =SUM('Capital Expenditure'!$C$30) -> 0 | F19: =SUM(C19:E19) -> 0 | K19: 155.542 | L19: =SUM(H19:K19) -> 155.542 | M19: =SUM(G19:I19)*$M$13/100 -> 0 | N19: =SUM(J19:K19)*$N$13/100 -> 0 | O19: =SUM(M19:N19) -> 0
A20: 2 | B20: =ROUNDUP(A20/5,0) -> 1 | C20: =SUM('Capital Expenditure'!$C$18:$D$18) -> 1217 | D20: =SUM('Capital Expenditure'!$C$24:$D$24) -> 1063 | E20: =SUM('Capital Expenditure'!$C$30:$D$30) -> 236 | F20: =SUM(C20:E20) -> 2516 | G20: =ROUND((C19*$C$13+D19*$D$13+E19*$E$13+((C20-C19)*$C$13/2)+((D20-D19)*$D$13/2)+((E20-E19)*$E$13/2))*$G$13/1000000,3) -> 17.42 | H20: 3.339544045 | I20: 9.961 | J20: 11.787 | K20: 466.627 | L20: =SUM(H20:K20) -> 491.714544 | M20: =SUM(G20:I20)*$M$13/100 -> 0 | N20: =SUM(J20:K20)*$N$13/100 -> 0 | O20: =SUM(M20:N20) -> 0
A21: 3 | B21: 1 | C21: =SUM('Capital Expenditure'!$C$18:$E$18) -> 2434 | D21: =SUM('Capital Expenditure'!$C$24:$E$24) -> 1328 | E21: =SUM('Capital Expenditure'!$C$30:$E$30) -> 457 | F21: 4219 | G21: =ROUND((C20*$C$13+D20*$D$13+E20*$E$13+((C21-C20)*$C$13/2)+((D21-D20)*$D$13/2)+((E21-E20)*$E$13/2))*$G$13/1000000,3) -> 46.56 | H21: 4.675361663 | I21: 13.946 | J21: 35.362 | K21: 622.169 | L21: 676.1523617 | M21: =SUM(G21:I21)*$M$13/100 -> 0 | N21: 0 | O21: 0
A22: 4 | B22: 1 | C22: =SUM('Capital Expenditure'!$C$18:$F$18) -> 3195 | D22: =SUM('Capital Expenditure'!$C$24:$F$24) -> 1593 | E22: =SUM('Capital Expenditure'!$C$30:$F$30) -> 720 | F22: 5508 | G22: 67.037 | H22: 6.67908809 | I22: 19.922 | J22: 47.149 | K22: 622.169 | L22: 695.9190881 | M22: 0 | N22: 0 | O22: 0
A23: 5 | B23: 1 | C23: =SUM('Capital Expenditure'!$C$18:$G$18) -> 3956 | D23: =SUM('Capital Expenditure'!$C$24:$G$24) -> 1858 | E23: =SUM('Capital Expenditure'!$C$30:$G$30) -> 967 | F23: 6781 | G23: 84.46 | H23: 8.682814517 | I23: 25.899 | J23: 47.149 | K23: 622.169 | L23: 703.8998145 | M23: 0 | N23: =SUM(J23:K23)*$N$13/100 -> 0 | O23: 0
A24: 6 | B24: 2 | C24: =SUM('Capital Expenditure'!$C$18:$H$18) -> 4717 | D24: =SUM('Capital Expenditure'!$C$24:$H$24) -> 2123 | E24: =SUM('Capital Expenditure'!$C$30:$H$30) -> 1206 | F24: 8046 | G24: 101.741 | H24: 10.68654094 | I24: 31.876 | J24: 47.149 | K24: 622.169 | L24: 711.8805409 | M24: 0 | N24: 0 | O24: 0
A25: 7 | B25: 2 | C25: =SUM('Capital Expenditure'!$C$18:$I$18) -> 5478 | D25: =SUM('Capital Expenditure'!$C$24:$I$24) -> 2228 | E25: =SUM('Capital Expenditure'!$C$30:$I$30) -> 1464 | F25: 9170 | G25: 117.962 | H25: 12.69026737 | I25: 37.852 | J25: 47.149 | K25: 622.169 | L25: 719.8602674 | M25: 0 | N25: 0 | O25: 0
A26: 8 | B26: 2 | C26: =SUM('Capital Expenditure'!$C$18:$J$18) -> 6239 | D26: =SUM('Capital Expenditure'!$C$24:$J$24) -> 2333 | E26: =SUM('Capital Expenditure'!$C$30:$J$30) -> 1734 | F26: 10306 | G26: 133.239 | H26: 14.6939938 | I26: 43.829 | J26: 47.149 | K26: 622.169 | L26: 727.8409938 | M26: 0 | N26: 0 | O26: 0
A27: 9 | B27: 2 | C27: =SUM('Capital Expenditure'!$C$18:$K$18) -> 7000 | D27: =SUM('Capital Expenditure'!$C$24:$K$24) -> 2438 | E27: =SUM('Capital Expenditure'!$C$30:$K$30) -> 2004 | F27: 11442 | G27: 148.587 | H27: 16.69772023 | I27: 49.806 | J27: 47.149 | K27: 622.169 | L27: 735.8217202 | M27: 0 | N27: 0 | O27: 0
A28: 10 | B28: 2 | C28: =SUM('Capital Expenditure'!$C$18:$L$18) -> 7761 | D28: =SUM('Capital Expenditure'!$C$24:$L$24) -> 2543 | E28: =SUM('Capital Expenditure'!$C$30:$L$30) -> 2274 | F28: 12578 | G28: 163.935 | H28: 18.70144665 | I28: 55.782 | J28: 47.149 | K28: 622.169 | L28: 743.8014467 | M28: 0 | N28: =SUM(J28:K28)*$N$13/100 -> 0 | O28: 0
A29: 11 | B29: 3 | C29: =SUM('Capital Expenditure'!$C$18:$M$18) -> 8522 | D29: =SUM('Capital Expenditure'!$C$24:$M$24) -> 2648 | E29: =SUM('Capital Expenditure'!$C$30:$M$30) -> 2544 | F29: 13714 | G29: 179.282 | H29: 18.70144665 | I29: 55.782 | J29: 47.149 | K29: 622.169 | L29: 743.8014467 | M29: 0 | N29: 0 | O29: 0
A30: 12 | B30: 3 | C30: =SUM('Capital Expenditure'!$C$18:$N$18) -> 9283 | D30: =SUM('Capital Expenditure'!$C$24:$N$24) -> 2913 | E30: =SUM('Capital Expenditure'!$C$30:$N$30) -> 2814 | F30: 15010 | G30: 195.755 | H30: 18.70144665 | I30: 55.782 | J30: 47.149 | K30: 622.169 | L30: 743.8014467 | M30: 0 | N30: 0 | O30: 0
A31: 13 | B31: 3 | C31: =SUM('Capital Expenditure'!$C$18:$O$18) -> 10044 | D31: =SUM('Capital Expenditure'!$C$24:$O$24) -> 3178 | E31: =SUM('Capital Expenditure'!$C$30:$O$30) -> 3084 | F31: 16306 | G31: 213.353 | H31: 18.70144665 | I31: 55.782 | J31: 47.149 | K31: 622.169 | L31: 743.8014467 | M31: 0 | N31: 0 | O31: 0
A32: 14 | B32: 3 | C32: =SUM('Capital Expenditure'!$C$18:$P$18) -> 10805 | D32: =SUM('Capital Expenditure'!$C$24:$P$24) -> 3443 | E32: =SUM('Capital Expenditure'!$C$30:$P$30) -> 3354 | F32: 17602 | G32: 230.952 | H32: 18.70144665 | I32: 55.782 | J32: 47.149 | K32: 622.169 | L32: 743.8014467 | M32: 0 | N32: 0 | O32: 0
A33: 15 | B33: 3 | C33: =SUM('Capital Expenditure'!$C$18:$Q$18) -> 11566 | D33: =SUM('Capital Expenditure'!$C$24:$Q$24) -> 3708 | E33: =SUM('Capital Expenditure'!$C$30:$Q$30) -> 3624 | F33: 18898 | G33: 248.55 | H33: 18.70144665 | I33: 55.782 | J33: 47.149 | K33: 622.169 | L33: 743.8014467 | M33: 0 | N33: 0 | O33: 0
A34: 16 | B34: 4 | C34: =SUM('Capital Expenditure'!$C$18:$R$18) -> 12327 | D34: =SUM('Capital Expenditure'!$C$24:$R$24) -> 3973 | E34: =SUM('Capital Expenditure'!$C$30:$R$30) -> 3894 | F34: 20194 | G34: 266.148 | H34: 18.70144665 | I34: 55.782 | J34: 47.149 | K34: 622.169 | L34: 743.8014467 | M34: 0 | N34: 0 | O34: 0
A35: 17 | B35: 4 | C35: =SUM('Capital Expenditure'!$C$18:$R$18) -> 12327 | D35: =SUM('Capital Expenditure'!$C$24:$R$24) -> 3973 | E35: =SUM('Capital Expenditure'!$C$30:$R$30) -> 3894 | F35: 20194 | G35: 274.947 | H35: 18.70144665 | I35: 55.782 | J35: 47.149 | K35: 622.169 | L35: 743.8014467 | M35: 0 | N35: 0 | O35: 0
A36: 18 | B36: 4 | C36: =SUM('Capital Expenditure'!$C$18:$T$18) -> 13849 | D36: =SUM('Capital Expenditure'!$C$24:$T$24) -> 4503 | E36: =SUM('Capital Expenditure'!$C$30:$T$30) -> 4434 | F36: 22786 | G36: 292.546 | H36: 18.70144665 | I36: 55.782 | J36: 47.149 | K36: 622.169 | L36: 743.8014467 | M36: 0 | N36: 0 | O36: 0
A37: 19 | B37: 4 | C37: =SUM('Capital Expenditure'!$C$18:$U$18) -> 14610 | D37: =SUM('Capital Expenditure'!$C$24:$U$24) -> 4768 | E37: =SUM('Capital Expenditure'!$C$30:$U$30) -> 4704 | F37: 24082 | G37: 318.943 | H37: 18.70144665 | I37: 55.782 | J37: 47.149 | K37: 622.169 | L37: 743.8014467 | M37: 0 | N37: 0 | O37: 0
A38: 20 | B38: 4 | C38: =SUM('Capital Expenditure'!$C$18:$V$18) -> 15371 | D38: =SUM('Capital Expenditure'!$C$24:$V$24) -> 5033 | E38: =SUM('Capital Expenditure'!$C$30:$V$30) -> 4974 | F38: 25378 | G38: 336.542 | H38: 18.70144665 | I38: 55.782 | J38: 47.149 | K38: 622.169 | L38: 743.8014467 | M38: 0 | N38: 0 | O38: 0
A39: 21 | B39: 5 | C39: =SUM('Capital Expenditure'!$C$18:$W$18) -> 16132 | D39: =SUM('Capital Expenditure'!$C$24:$W$24) -> 5298 | E39: =SUM('Capital Expenditure'!$C$30:$W$30) -> 5244 | F39: 26674 | G39: 354.14 | H39: 18.70144665 | I39: 55.782 | J39: 47.149 | K39: 622.169 | L39: 743.8014467 | M39: 0 | N39: 0 | O39: 0
A40: 22 | B40: 5 | C40: =SUM('Capital Expenditure'!$C$18:$X$18) -> 16893 | D40: =SUM('Capital Expenditure'!$C$24:$X$24) -> 5298 | E40: =SUM('Capital Expenditure'!$C$30:$X$30) -> 5514 | F40: 27705 | G40: 369.874 | H40: 18.70144665 | I40: 55.782 | J40: 47.149 | K40: 622.169 | L40: 743.8014467 | M40: 0 | N40: 0 | O40: 0
A41: 23 | B41: 5 | C41: =SUM('Capital Expenditure'!$C$18:$Y$18) -> 17654 | D41: =SUM('Capital Expenditure'!$C$24:$Y$24) -> 5298 | E41: =SUM('Capital Expenditure'!$C$30:$Y$30) -> 5784 | F41: 28736 | G41: 383.745 | H41: 18.70144665 | I41: 55.782 | J41: 47.149 | K41: 622.169 | L41: 743.8014467 | M41: 0 | N41: 0 | O41: 0
A42: 24 | B42: 5 | C42: =SUM('Capital Expenditure'!$C$18:$Z$18) -> 18415 | D42: =SUM('Capital Expenditure'!$C$24:$Z$24) -> 5298 | E42: =SUM('Capital Expenditure'!$C$30:$Z$30) -> 6054 | F42: 29767 | G42: 397.615 | H42: 18.70144665 | I42: 55.782 | J42: 47.149 | K42: 622.169 | L42: 743.8014467 | M42: 0 | N42: 0 | O42: 0
A43: 25 | B43: 5 | C43: =SUM('Capital Expenditure'!$C$18:$AA$18) -> 19176 | D43: =SUM('Capital Expenditure'!$C$24:$AA$24) -> 5298 | E43: =SUM('Capital Expenditure'!$C$30:$AA$30) -> 6324 | F43: 30798 | G43: 411.486 | H43: 18.70144665 | I43: 55.782 | J43: 47.149 | K43: 622.169 | L43: 743.8014467 | M43: 0 | N43: 0 | O43: 0
A44: 26 | B44: 6 | C44: =SUM('Capital Expenditure'!$C$18:$AB$18) -> 19937 | D44: =SUM('Capital Expenditure'!$C$24:$AB$24) -> 5298 | E44: =SUM('Capital Expenditure'!$C$30:$AB$30) -> 6594 | F44: 31829 | G44: 425.356 | H44: 18.70144665 | I44: 55.782 | J44: 47.149 | K44: 622.169 | L44: 743.8014467 | M44: 0 | N44: 0 | O44: =SUM(M44:N44) -> 0
A45: 27 | B45: 6 | C45: =SUM('Capital Expenditure'!$C$18:$AC$18) -> 20698 | D45: =SUM('Capital Expenditure'!$C$24:$AC$24) -> 5298 | E45: =SUM('Capital Expenditure'!$C$30:$AC$30) -> 6864 | F45: 32860 | G45: 439.227 | H45: 18.70144665 | I45: 55.782 | J45: 47.149 | K45: 622.169 | L45: 743.8014467 | M45: 0 | N45: 0 | O45: 0
A46: 28 | B46: 6 | C46: =SUM('Capital Expenditure'!$C$18:$AD$18) -> 21459 | D46: =SUM('Capital Expenditure'!$C$24:$AD$24) -> 5298 | E46: =SUM('Capital Expenditure'!$C$30:$AD$30) -> 7134 | F46: 33891 | G46: 453.097 | H46: 18.70144665 | I46: 55.782 | J46: 47.149 | K46: 622.169 | L46: 743.8014467 | M46: 0 | N46: 0 | O46: 0
A47: 29 | B47: 6 | C47: =SUM('Capital Expenditure'!$C$18:$AE$18) -> 22220 | D47: =SUM('Capital Expenditure'!$C$24:$AE$24) -> 5298 | E47: =SUM('Capital Expenditure'!$C$30:$AE$30) -> 7404 | F47: 34922 | G47: 466.968 | H47: 18.70144665 | I47: 55.782 | J47: 47.149 | K47: 622.169 | L47: 743.8014467 | M47: 0 | N47: 0 | O47: 0
A48: 30 | B48: 6 | C48: =SUM('Capital Expenditure'!$C$18:$AF$18) -> 22981 | D48: =SUM('Capital Expenditure'!$C$24:$AF$24) -> 5298 | E48: =SUM('Capital Expenditure'!$C$30:$AF$30) -> 7674 | F48: 35953 | G48: 480.838 | H48: 18.70144665 | I48: 55.782 | J48: 47.149 | K48: 622.169 | L48: 743.8014467 | M48: 0 | N48: 0 | O48: 0
A49: 31 | B49: 7 | C49: =SUM('Capital Expenditure'!$C$18:$AG$18) -> 23742 | D49: =SUM('Capital Expenditure'!$C$24:$AG$24) -> 5298 | E49: =SUM('Capital Expenditure'!$C$30:$AG$30) -> 7944 | F49: 36984 | G49: 494.709 | H49: 18.70144665 | I49: 55.782 | J49: 47.149 | K49: 622.169 | L49: 743.8014467 | M49: 0 | N49: 0 | O49: =SUM(M49:N49) -> 0
A50: 32 | B50: 7 | C50: =SUM('Capital Expenditure'!$C$18:$AH$18) -> 23742 | D50: =SUM('Capital Expenditure'!$C$24:$AH$24) -> 5298 | E50: =SUM('Capital Expenditure'!$C$30:$AH$30) -> 8214 | F50: 37254 | G50: 503.226 | H50: 18.70144665 | I50: 55.782 | J50: 47.149 | K50: 622.169 | L50: 743.8014467 | M50: 0 | N50: 0 | O50: 0
A51: 33 | B51: 7 | C51: =SUM('Capital Expenditure'!$C$18:$AI$18) -> 23742 | D51: =SUM('Capital Expenditure'!$C$24:$AI$24) -> 5298 | E51: =SUM('Capital Expenditure'!$C$30:$AI$30) -> 8484 | F51: 37524 | G51: 506.392 | H51: 18.70144665 | I51: 55.782 | J51: 47.149 | K51: 622.169 | L51: 743.8014467 | M51: 0 | N51: 0 | O51: 0
A52: 34 | B52: 7 | C52: =SUM('Capital Expenditure'!$C$18:$AJ$18) -> 23742 | D52: =SUM('Capital Expenditure'!$C$24:$AJ$24) -> 5298 | E52: =SUM('Capital Expenditure'!$C$30:$AJ$30) -> 8754 | F52: 37794 | G52: 509.557 | H52: 18.70144665 | I52: 55.782 | J52: 47.149 | K52: 622.169 | L52: 743.8014467 | M52: 0 | N52: 0 | O52: 0
A53: 35 | B53: 7 | C53: =SUM('Capital Expenditure'!$C$18:$AK$18) -> 23742 | D53: =SUM('Capital Expenditure'!$C$24:$AK$24) -> 5298 | E53: =SUM('Capital Expenditure'!$C$30:$AK$30) -> 9024 | F53: 38064 | G53: 512.722 | H53: 18.70144665 | I53: 55.782 | J53: 47.149 | K53: 622.169 | L53: 743.8014467 | M53: 0 | N53: 0 | O53: 0
A54: 36 | B54: 8 | C54: =SUM('Capital Expenditure'!$C$18:$AL$18) -> 23742 | D54: =SUM('Capital Expenditure'!$C$24:$AL$24) -> 5298 | E54: =SUM('Capital Expenditure'!$C$30:$AL$30) -> 9294 | F54: 38334 | G54: 515.887 | H54: 18.70144665 | I54: 55.782 | J54: 47.149 | K54: 622.169 | L54: 743.8014467 | M54: 0 | N54: 0 | O54: 0
A55: 37 | B55: 8 | C55: =SUM('Capital Expenditure'!$C$18:$AM$18) -> 23742 | D55: =SUM('Capital Expenditure'!$C$24:$AM$24) -> 5298 | E55: =SUM('Capital Expenditure'!$C$30:$AM$30) -> 9564 | F55: 38604 | G55: 519.052 | H55: 18.70144665 | I55: 55.782 | J55: 47.149 | K55: 622.169 | L55: 743.8014467 | M55: 0 | N55: 0 | O55: 0
A56: 38 | B56: 8 | C56: =SUM('Capital Expenditure'!$C$18:$AN$18) -> 23742 | D56: =SUM('Capital Expenditure'!$C$24:$AN$24) -> 5298 | E56: =SUM('Capital Expenditure'!$C$30:$AN$30) -> 9834 | F56: 38874 | G56: 522.217 | H56: 18.70144665 | I56: 55.782 | J56: 47.149 | K56: 622.169 | L56: 743.8014467 | M56: 0 | N56: 0 | O56: 0
A57: 39 | B57: 8 | C57: =SUM('Capital Expenditure'!$C$18:$AO$18) -> 23742 | D57: =SUM('Capital Expenditure'!$C$24:$AO$24) -> 5298 | E57: =SUM('Capital Expenditure'!$C$30:$AO$30) -> 10104 | F57: 39144 | G57: 525.383 | H57: 18.70144665 | I57: 55.782 | J57: 47.149 | K57: 622.169 | L57: 743.8014467 | M57: 0 | N57: 0 | O57: =SUM(M57:N57) -> 0
A58: 40 | B58: 8 | C58: =SUM('Capital Expenditure'!$C$18:$AP$18) -> 23742 | D58: =SUM('Capital Expenditure'!$C$24:$AP$24) -> 5298 | E58: =SUM('Capital Expenditure'!$C$30:$AP$30) -> 10374 | F58: 39414 | G58: 528.548 | H58: 18.70144665 | I58: 55.782 | J58: 47.149 | K58: 622.169 | L58: 743.8014467 | M58: 0 | N58: 0 | O58: =SUM(M58:N58) -> 0

Sheet WACC & NPV Calculations
A3: Weighted Average Cost of Capital and Nett Present Value Years 1-40
J5: Depreciation Period (years) | L5: 35
B6: All numbers in blue are input by Utility Regulator | G6: 0
B7: All numbers in black are calculated | G7: 0 | I7: Distribution Tariff | L7: pence / Kwh
B8: Applicants only permitted to input data into blank cells | I8: Large + Contract I/C | L8: 0.85 | M8: =M9*L8 -> 0
I9: Domestic + Small + Medium I/C | L9: 1 | P9: =SUM(O59:Q59) ->  | Q9: Allowed / Collected Revenue Check
J11: Social Discount Rate | L11: 0.035
C14: Pre Tax | D14: Asset Value | H14: Annual Cost | O14: Profile Adjustment
C15: Real | I15: Return on | J15: Domestic | K15: Operating | N15: Opening | O15: Annual | R15: Closing
A16: Year | B16: PC period | C16: WACC | D16: Opening | E16: Capex | F16: Depreciation | G16: Closing | H16: Depreciation | I16: Capital | J16: Incentive | K16: Costs | L16: Total | N16: Balance | O16: Cost | P16: Return | Q16: Revenue | R16: Balance
A17: 1 | B17: =ROUNDUP(A17/5,0) -> 1 | D17: 0 | E17: ='Capital Expenditure'!C$121 -> 7.428 | F17: =-ROUND((E17/$L$5),3) -> -0.212 | G17: =SUM(D17:F17) -> 7.216 | H17: =-SUM(F17:F17) -> 0.212 | I17: =((D17+G17)/2)*C17 -> 0 | J17: ='Capital Expenditure'!C$129 -> 0 | K17: ='Operating Expenditure'!Q13 -> 0.09928 | L17: =SUM(H17:K17) -> 0.31128 | N17: 0 | O17: =L17 -> 0.31128 | P17: =N17*C17 -> 0 | Q17: =-'Consumption & Revenue'!O19 -> 0 | R17: =SUM(N17:Q17) -> 0.31128
A18: 2 | B18: =ROUNDUP(A18/5,0) -> 1 | D18: =G17 -> 7.216 | E18: ='Capital Expenditure'!D$121 -> 10.286 | F18: =-ROUND((SUM($E$17:E18)/$L$5),3) -> -0.506 | G18: 16.996 | H18: 0.506 | I18: =((D18+G18)/2)*C18 -> 0 | J18: ='Capital Expenditure'!D$129 -> 0.518 | K18: ='Operating Expenditure'!Q14 -> 0.26735 | L18: 1.29135 | N18: =R17 -> 0.31128 | O18: =L18 -> 1.29135 | P18: 0 | Q18: =-'Consumption & Revenue'!O20 -> 0 | R18: =SUM(N18:Q18) -> 1.60263
A19: 3 | B19: 1 | D19: =G18 -> 16.996 | E19: ='Capital Expenditure'!E$121 -> 6.526 | F19: =-ROUND((SUM($E$17:E19)/$L$5),3) -> -0.693 | G19: 22.829 | H19: 0.693 | I19: 0 | J19: ='Capital Expenditure'!E$129 -> 0.518 | K19: ='Operating Expenditure'!Q15 -> 0.30648 | L19: 1.51748 | N19: =R18 -> 1.60263 | O19: 1.51748 | P19: 0 | Q19: =-'Consumption & Revenue'!O21 -> 0 | R19: 3.12011
A20: 4 | B20: 1 | D20: 22.829 | E20: ='Capital Expenditure'!F$121 -> 3.918 | F20: =-ROUND((SUM($E$17:E20)/$L$5),3) -> -0.805 | G20: 25.942 | H20: 0.805 | I20: 0 | J20: ='Capital Expenditure'!F$129 -> 0.324 | K20: ='Operating Expenditure'!Q16 -> 0.34544 | L20: 1.47444 | N20: 3.12011 | O20: 1.47444 | P20: 0 | Q20: =-'Consumption & Revenue'!O22 -> 0 | R20: 4.59455
A21: 5 | B21: 1 | D21: 25.942 | E21: ='Capital Expenditure'!G$121 -> 3.906 | F21: =-ROUND((SUM($E$17:E21)/$L$5),3) -> -0.916 | G21: 28.932 | H21: 0.916 | I21: 0 | J21: ='Capital Expenditure'!G$129 -> 0.324 | K21: ='Operating Expenditure'!Q17 -> 0.38432 | L21: 1.62432 | N21: 4.59455 | O21: 1.62432 | P21: 0 | Q21: =-'Consumption & Revenue'!O23 -> 0 | R21: 6.21887
A22: 6 | B22: 2 | D22: 28.932 | E22: ='Capital Expenditure'!H$121 -> 3.898 | F22: =-ROUND((SUM($E$17:E22)/$L$5),3) -> -1.027 | G22: 31.803 | H22: 1.027 | I22: 0 | J22: ='Capital Expenditure'!H$129 -> 0.324 | K22: ='Operating Expenditure'!Q18 -> 0.44425 | L22: 1.79525 | N22: 6.21887 | O22: 1.79525 | P22: 0 | Q22: =-'Consumption & Revenue'!O24 -> 0 | R22: 8.01412
A23: 7 | B23: 2 | D23: 31.803 | E23: ='Capital Expenditure'!I$121 -> 3.503 | F23: =-ROUND((SUM($E$17:E23)/$L$5),3) -> -1.128 | G23: 34.178 | H23: 1.128 | I23: 0 | J23: ='Capital Expenditure'!L$129 -> 0.324 | K23: ='Operating Expenditure'!Q19 -> 0.47931 | L23: 1.93131 | N23: 8.01412 | O23: 1.93131 | P23: 0 | Q23: =-'Consumption & Revenue'!O25 -> 0 | R23: 9.94543
A24: 8 | B24: 2 | D24: 34.178 | E24: ='Capital Expenditure'!J$121 -> 3.516 | F24: =-ROUND((SUM($E$17:E24)/$L$5),3) -> -1.228 | G24: 36.466 | H24: 1.228 | I24: 0 | J24: ='Capital Expenditure'!J$129 -> 0.324 | K24: ='Operating Expenditure'!Q20 -> 0.51437 | L24: 2.06637 | N24: 9.94543 | O24: 2.06637 | P24: 0 | Q24: =-'Consumption & Revenue'!O26 -> 0 | R24: 12.0118
A25: 9 | B25: 2 | D25: 36.466 | E25: ='Capital Expenditure'!K$121 -> 3.516 | F25: =-ROUND((SUM($E$17:E25)/$L$5),3) -> -1.328 | G25: 38.654 | H25: 1.328 | I25: 0 | J25: ='Capital Expenditure'!K$129 -> 0.324 | K25: ='Operating Expenditure'!Q21 -> 0.54943 | L25: 2.20143 | N25: 12.0118 | O25: 2.20143 | P25: 0 | Q25: =-'Consumption & Revenue'!O27 -> 0 | R25: 14.21323
A26: 10 | B26: 2 | D26: 38.654 | E26: ='Capital Expenditure'!L$121 -> 3.516 | F26: =-ROUND((SUM($E$17:E26)/$L$5),3) -> -1.429 | G26: 40.741 | H26: 1.429 | I26: 0 | J26: ='Capital Expenditure'!L$129 -> 0.324 | K26: ='Operating Expenditure'!Q22 -> 0.58083 | L26: 2.33383 | N26: 14.21323 | O26: 2.33383 | P26: 0 | Q26: =-'Consumption & Revenue'!O28 -> 0 | R26: 16.54706
A27: 11 | B27: 3 | C27: =AVERAGE($C$17:$C$26) ->  | D27: 40.741 | E27: ='Capital Expenditure'!M$121 -> 3.15 | F27: =-ROUND((SUM($E$17:E27)/$L$5),3) -> -1.519 | G27: 42.372 | H27: 1.519 | K27: ='Operating Expenditure'!Q23 -> 0.4566719 | N27: 16.54706 | Q27: =-'Consumption & Revenue'!O29 -> 0
A28: 12 | B28: 3 | C28: =AVERAGE($C$17:$C$26) ->  | D28: 42.372 | E28: ='Capital Expenditure'!N$121 -> 3.329 | F28: =-ROUND((SUM($E$17:E28)/$L$5),3) -> -1.614 | G28: 44.087 | H28: 1.614 | K28: ='Operating Expenditure'!Q24 -> 0.4772221355 | Q28: =-'Consumption & Revenue'!O30 -> 0
A29: 13 | B29: 3 | D29: 44.087 | E29: ='Capital Expenditure'!O$121 -> 3.235 | F29: =-ROUND((SUM($E$17:E29)/$L$5),3) -> -1.706 | G29: 45.616 | H29: 1.706 | K29: ='Operating Expenditure'!Q25 -> 0.4986971316 | Q29: =-'Consumption & Revenue'!O31 -> 0
A30: 14 | B30: 3 | D30: 45.616 | E30: ='Capital Expenditure'!P$121 -> 3.151 | F30: =-ROUND((SUM($E$17:E30)/$L$5),3) -> -1.797 | G30: 46.97 | H30: 1.797 | K30: ='Operating Expenditure'!Q26 -> 0.5211385025 | Q30: =-'Consumption & Revenue'!O32 -> 0
A31: 15 | B31: 3 | D31: 46.97 | E31: ='Capital Expenditure'!Q$121 -> 3.151 | F31: =-ROUND((SUM($E$17:E31)/$L$5),3) -> -1.887 | G31: 48.234 | H31: 1.887 | K31: ='Operating Expenditure'!Q27 -> 0.5445897351 | Q31: =-'Consumption & Revenue'!O33 -> 0
A32: 16 | B32: 4 | D32: 48.234 | E32: ='Capital Expenditure'!R$121 -> 3.151 | F32: =-ROUND((SUM($E$17:E32)/$L$5),3) -> -1.977 | G32: 49.408 | H32: 1.977 | K32: ='Operating Expenditure'!Q28 -> 0.5595659528 | Q32: =-'Consumption & Revenue'!O34 -> 0
A33: 17 | B33: 4 | D33: 49.408 | E33: ='Capital Expenditure'!S$121 -> 3.119 | F33: =-ROUND((SUM($E$17:E33)/$L$5),3) -> -2.066 | G33: 50.461 | H33: 2.066 | K33: ='Operating Expenditure'!Q29 -> 0.5749540166 | Q33: =-'Consumption & Revenue'!O35 -> 0
A34: 18 | B34: 4 | D34: 50.461 | E34: ='Capital Expenditure'!T$121 -> 3.13 | F34: =-ROUND((SUM($E$17:E34)/$L$5),3) -> -2.155 | G34: 51.436 | H34: 2.155 | K34: ='Operating Expenditure'!Q30 -> 0.590765252 | Q34: =-'Consumption & Revenue'!O36 -> 0
A35: 19 | B35: 4 | D35: 51.436 | E35: ='Capital Expenditure'!U$121 -> 3.13 | F35: =-ROUND((SUM($E$17:E35)/$L$5),3) -> -2.245 | G35: 52.321 | H35: 2.245 | K35: ='Operating Expenditure'!Q31 -> 0.6070112964 | Q35: =-'Consumption & Revenue'!O37 -> 0
A36: 20 | B36: 4 | D36: 52.321 | E36: ='Capital Expenditure'!V$121 -> 3.13 | F36: =-ROUND((SUM($E$17:E36)/$L$5),3) -> -2.334 | G36: 53.117 | H36: 2.334 | K36: ='Operating Expenditure'!Q32 -> 0.6237041071 | Q36: =-'Consumption & Revenue'!O38 -> 0
A37: 21 | B37: 5 | D37: 53.117 | E37: ='Capital Expenditure'!W$121 -> 3.151 | F37: =-ROUND((SUM($E$17:E37)/$L$5),3) -> -2.424 | G37: 53.844 | H37: 2.424 | K37: ='Operating Expenditure'!Q33 -> 0.6299411482 | Q37: =-'Consumption & Revenue'!O39 -> 0
A38: 22 | B38: 5 | D38: 53.844 | E38: ='Capital Expenditure'!X$121 -> 3.981 | F38: =-ROUND((SUM($E$17:E38)/$L$5),3) -> -2.538 | G38: 55.287 | H38: 2.538 | K38: ='Operating Expenditure'!Q34 -> 0.6362405596 | Q38: =-'Consumption & Revenue'!O40 -> 0
A39: 23 | B39: 5 | D39: 55.287 | E39: ='Capital Expenditure'!Y$121 -> 3.614 | F39: =-ROUND((SUM($E$17:E39)/$L$5),3) -> -2.641 | G39: 56.26 | H39: 2.641 | K39: ='Operating Expenditure'!Q35 -> 0.6426029652 | Q39: =-'Consumption & Revenue'!O41 -> 0
A40: 24 | B40: 5 | D40: 56.26 | E40: ='Capital Expenditure'!Z$121 -> 3.342 | F40: =-ROUND((SUM($E$17:E40)/$L$5),3) -> -2.736 | G40: 56.866 | H40: 2.736 | K40: ='Operating Expenditure'!Q36 -> 0.6490289949 | Q40: =-'Consumption & Revenue'!O42 -> 0
A41: 25 | B41: 5 | D41: 56.866 | E41: ='Capital Expenditure'!AA$121 -> 3.269 | F41: =-ROUND((SUM($E$17:E41)/$L$5),3) -> -2.83 | G41: 57.305 | H41: 2.83 | K41: ='Operating Expenditure'!Q37 -> 0.6555192848 | Q41: =-'Consumption & Revenue'!O43 -> 0
A42: 26 | B42: 6 | D42: 57.305 | E42: ='Capital Expenditure'!AB$121 -> 3.258 | F42: =-ROUND((SUM($E$17:E42)/$L$5),3) -> -2.923 | G42: 57.64 | H42: 2.923 | K42: ='Operating Expenditure'!Q38 -> 0.6620744777 | Q42: =-'Consumption & Revenue'!O44 -> 0
A43: 27 | B43: 6 | D43: 57.64 | E43: ='Capital Expenditure'!AC$121 -> 3.185 | F43: =-ROUND((SUM($E$17:E43)/$L$5),3) -> -3.014 | G43: 57.811 | H43: 3.014 | K43: ='Operating Expenditure'!Q39 -> 0.6686952225 | Q43: =-'Consumption & Revenue'!O45 -> 0
A44: 28 | B44: 6 | D44: 57.811 | E44: ='Capital Expenditure'!AD$121 -> 3.185 | F44: =-ROUND((SUM($E$17:E44)/$L$5),3) -> -3.105 | G44: 57.891 | H44: 3.105 | K44: ='Operating Expenditure'!Q40 -> 0.6753821747 | Q44: =-'Consumption & Revenue'!O46 -> 0
A45: 29 | B45: 6 | D45: 57.891 | E45: ='Capital Expenditure'!AE$121 -> 3.196 | F45: =-ROUND((SUM($E$17:E45)/$L$5),3) -> -3.196 | G45: 57.891 | H45: 3.196 | K45: ='Operating Expenditure'!Q41 -> 0.6821359964 | Q45: =-'Consumption & Revenue'!O47 -> 0
A46: 30 | B46: 6 | D46: 57.891 | E46: ='Capital Expenditure'!AF$121 -> 3.196 | F46: =-ROUND((SUM($E$17:E46)/$L$5),3) -> -3.288 | G46: 57.799 | H46: 3.288 | K46: ='Operating Expenditure'!Q42 -> 0.6889573564 | Q46: =-'Consumption & Revenue'!O48 -> 0
A47: 31 | B47: 7 | D47: 57.799 | E47: ='Capital Expenditure'!AG$121 -> 2.976 | F47: =-ROUND((SUM($E$17:E47)/$L$5),3) -> -3.373 | G47: 57.402 | H47: 3.373 | K47: ='Operating Expenditure'!Q43 -> 0.6889573564 | Q47: =-'Consumption & Revenue'!O49 -> 0
A48: 32 | B48: 7 | D48: 57.402 | E48: ='Capital Expenditure'!AH$121 -> 1.434 | F48: =-ROUND((SUM($E$17:E48)/$L$5),3) -> -3.414 | G48: 55.422 | H48: 3.414 | K48: ='Operating Expenditure'!Q44 -> 0.6889573564 | Q48: =-'Consumption & Revenue'!O50 -> 0
A49: 33 | B49: 7 | D49: 55.422 | E49: ='Capital Expenditure'!AI$121 -> 1.329 | F49: =-ROUND((SUM($E$17:E49)/$L$5),3) -> -3.452 | G49: 53.299 | H49: 3.452 | K49: ='Operating Expenditure'!Q45 -> 0.6889573564 | Q49: =-'Consumption & Revenue'!O51 -> 0
A50: 34 | B50: 7 | D50: 53.299 | E50: ='Capital Expenditure'!AJ$121 -> 1.246 | F50: =-ROUND((SUM($E$17:E50)/$L$5),3) -> -3.487 | G50: 51.058 | H50: 3.487 | K50: ='Operating Expenditure'!Q46 -> 0.6889573564 | Q50: =-'Consumption & Revenue'!O52 -> 0
A51: 35 | B51: 7 | D51: 51.058 | E51: ='Capital Expenditure'!AK$121 -> 1.256 | F51: =-ROUND((SUM($E$17:E51)/$L$5),3) -> -3.523 | G51: 48.791 | H51: 3.523 | K51: ='Operating Expenditure'!Q47 -> 0.6889573564 | Q51: =-'Consumption & Revenue'!O53 -> 0
A52: 36 | B52: 8 | D52: 48.791 | E52: ='Capital Expenditure'!AL$121 -> 1.256 | F52: =-ROUND((SUM(E18:E52)/$L$5),3) -> -3.347 | G52: 46.7 | H52: 3.347 | K52: ='Operating Expenditure'!Q48 -> 0.6889573564 | Q52: =-'Consumption & Revenue'!O54 -> 0
A53: 37 | B53: 8 | D53: 46.7 | E53: ='Capital Expenditure'!AM$121 -> 1.225 | F53: =-ROUND((SUM(E19:E53)/$L$5),3) -> -3.088 | G53: 44.837 | H53: 3.088 | K53: ='Operating Expenditure'!Q49 -> 0.6889573564 | Q53: =-'Consumption & Revenue'!O55 -> 0
A54: 38 | B54: 8 | D54: 44.837 | E54: ='Capital Expenditure'!AN$121 -> 1.225 | F54: -2.936 | G54: 43.126 | H54: 2.936 | K54: ='Operating Expenditure'!Q50 -> 0.6889573564 | Q54: =-'Consumption & Revenue'!O56 -> 0
A55: 39 | B55: 8 | D55: 43.126 | E55: ='Capital Expenditure'!AO$121 -> 1.225 | F55: -2.859 | G55: 41.492 | H55: 2.859 | K55: ='Operating Expenditure'!Q51 -> 0.6889573564 | Q55: =-'Consumption & Revenue'!O57 -> 0
A56: 40 | B56: 8 | D56: 41.492 | E56: ='Capital Expenditure'!AP$121 -> 1.225 | F56: -2.783 | G56: 39.934 | H56: 2.783 | K56: ='Operating Expenditure'!Q52 -> 0.6889573564 | Q56: =-'Consumption & Revenue'!O58 -> 0
E59: =SUM(E17:E56) -> 129.463 | F59: =SUM(F17:F56) -> -89.529 | G59: =SUM(D59:F59) -> 39.934 | H59: 89.529 | J59: 3.304 | K59: 22.90553177 | O59: =SUM(O17:O56) ->  | P59: =SUM(P17:P56) ->  | Q59: 0
N62: Net Present Value as per Published | Q62: =-NPV(L11,Q17:Q56) -> 0
N63: Criteria 3.15 Applicant Determined Cost
